Workbook

Sheet Debit transactions (2024)
A1: Bank Acct | B1: Date | C1: Description | D1: Category | E1: Amount | F1: BA Balance | G1: WF Balance | H1: Who | I1: Bill to | J1: Class | K1: Charge Receipt
A2: BA | B2: 2024-01-02 | C2: External transfer fee - Next Day - 12/29/2023 Confirmation: 471140774 | D2: Expense | E2: -5 | F2: =IF(Table147[[#This Row],[Bank Acct]]=LEFT(Table147[[#Headers],[BA Balance]],2),SUMIF(Table147[[#Headers],[Bank Acct]]:Table147[[#This Row],[Bank Acct]],Table147[[#This Row],[Bank Acct]],Table147[[#Headers],[Amount]]:Table147[[#This Row],[Amount]]),"") -> -5 | G2: =IF(Table147[[#This Row],[Bank Acct]]=LEFT(Table147[[#Headers],[WF Balance]],2),SUMIF(Table147[[#Headers],[Bank Acct]]:Table147[[#This Row],[Bank Acct]],Table147[[#This Row],[Bank Acct]],Table147[[#Headers],[Amount]]:Table147[[#This Row],[Amount]]),"") ->  | H2: =IFERROR(INDEX([1]Lookup!$B$2:$C$7,MATCH(RIGHT(TRIM(Table147[[#This Row],[Description]]),4),[1]Lookup!$B$2:$B$7,0),2),"") ->  | I2: AE | J2: Bank Charge | K2: None available
A3: BA | B3: 2024-01-02 | C3: INTERNATIONAL TRANSACTION FEE 01/02 OWL FOR THUNDERBI WIESBADEN 00 DEBIT CARD *7429 | D3: Expense | E3: -0.33 | F3: =IF(Table147[[#This Row],[Bank Acct]]=LEFT(Table147[[#Headers],[BA Balance]],2),SUMIF(Table147[[#Headers],[Bank Acct]]:Table147[[#This Row],[Bank Acct]],Table147[[#This Row],[Bank Acct]],Table147[[#Headers],[Amount]]:Table147[[#This Row],[Amount]]),"") -> -5.33 | G3: =IF(Table147[[#This Row],[Bank Acct]]=LEFT(Table147[[#Headers],[WF Balance]],2),SUMIF(Table147[[#Headers],[Bank Acct]]:Table147[[#This Row],[Bank Acct]],Table147[[#This Row],[Bank Acct]],Table147[[#Headers],[Amount]]:Table147[[#This Row],[Amount]]),"") ->  | H3: =IFERROR(INDEX([1]Lookup!$B$2:$C$7,MATCH(RIGHT(TRIM(Table147[[#This Row],[Description]]),4),[1]Lookup!$B$2:$B$7,0),2),"") -> FWC | I3: AE | J3: Bank Charge | K3: 240103 - INTERNATIONAL TRANSACTION FEE OWL FOR THUNDERBI.pdf
A4: BA | B4: 2024-01-02 | C4: Monthly Fee Business Adv Relationship | D4: Expense | E4: -29.95 | F4: =IF(Table147[[#This Row],[Bank Acct]]=LEFT(Table147[[#Headers],[BA Balance]],2),SUMIF(Table147[[#Headers],[Bank Acct]]:Table147[[#This Row],[Bank Acct]],Table147[[#This Row],[Bank Acct]],Table147[[#Headers],[Amount]]:Table147[[#This Row],[Amount]]),"") -> -35.28 | G4: =IF(Table147[[#This Row],[Bank Acct]]=LEFT(Table147[[#Headers],[WF Balance]],2),SUMIF(Table147[[#Headers],[Bank Acct]]:Table147[[#This Row],[Bank Acct]],Table147[[#This Row],[Bank Acct]],Table147[[#Headers],[Amount]]:Table147[[#This Row],[Amount]]),"") ->  | H4: =IFERROR(INDEX([1]Lookup!$B$2:$C$7,MATCH(RIGHT(TRIM(Table147[[#This Row],[Description]]),4),[1]Lookup!$B$2:$B$7,0),2),"") ->  | I4: AE | J4: Bank Charge | K4: N/A
A5: BA | B5: 2024-01-02 | C5: OWL FOR THUNDERBI 01/02 PURCHASE WIESBADEN 00 DEBIT CARD *7429 | D5: Expense | E5: -11.09 | F5: =IF(Table147[[#This Row],[Bank Acct]]=LEFT(Table147[[#Headers],[BA Balance]],2),SUMIF(Table147[[#Headers],[Bank Acct]]:Table147[[#This Row],[Bank Acct]],Table147[[#This Row],[Bank Acct]],Table147[[#Headers],[Amount]]:Table147[[#This Row],[Amount]]),"") -> -46.37 | G5: =IF(Table147[[#This Row],[Bank Acct]]=LEFT(Table147[[#Headers],[WF Balance]],2),SUMIF(Table147[[#Headers],[Bank Acct]]:Table147[[#This Row],[Bank Acct]],Table147[[#This Row],[Bank Acct]],Table147[[#Headers],[Amount]]:Table147[[#This Row],[Amount]]),"") ->  | H5: =IFERROR(INDEX([1]Lookup!$B$2:$C$7,MATCH(RIGHT(TRIM(Table147[[#This Row],[Description]]),4),[1]Lookup!$B$2:$B$7,0),2),"") -> FWC | I5: AE | J5: Web Tools | K5: 240102 - Owl invoice 3-119979.pdf
A6: BA | B6: 2024-01-02 | C6: STAMPS.COM 01/02 REFUND 8556082677 TX DEBIT CARD *7411 | D6: Expense | E6: 4.34 | F6: =IF(Table147[[#This Row],[Bank Acct]]=LEFT(Table147[[#Headers],[BA Balance]],2),SUMIF(Table147[[#Headers],[Bank Acct]]:Table147[[#This Row],[Bank Acct]],Table147[[#This Row],[Bank Acct]],Table147[[#Headers],[Amount]]:Table147[[#This Row],[Amount]]),"") -> -42.03 | G6: =IF(Table147[[#This Row],[Bank Acct]]=LEFT(Table147[[#Headers],[WF Balance]],2),SUMIF(Table147[[#Headers],[Bank Acct]]:Table147[[#This Row],[Bank Acct]],Table147[[#This Row],[Bank Acct]],Table147[[#Headers],[Amount]]:Table147[[#This Row],[Amount]]),"") ->  | H6: =IFERROR(INDEX([1]Lookup!$B$2:$C$7,MATCH(RIGHT(TRIM(Table147[[#This Row],[Description]]),4),[1]Lookup!$B$2:$B$7,0),2),"") -> LRC | I6: AE | J6: Stamps | K6: None available - credit for fraction of month
A7: BA | B7: 2024-01-10 | C7: PEREGRINE AVIONI DES:QUICKBOOKS ID:375020979 INDN:AVIAGLOBAL GROUP, LLC CO ID:1722616653 PPD | D7: Income | E7: 2069 | F7: =IF(Table147[[#This Row],[Bank Acct]]=LEFT(Table147[[#Headers],[BA Balance]],2),SUMIF(Table147[[#Headers],[Bank Acct]]:Table147[[#This Row],[Bank Acct]],Table147[[#This Row],[Bank Acct]],Table147[[#Headers],[Amount]]:Table147[[#This Row],[Amount]]),"") -> 2026.97 | G7: =IF(Table147[[#This Row],[Bank Acct]]=LEFT(Table147[[#Headers],[WF Balance]],2),SUMIF(Table147[[#Headers],[Bank Acct]]:Table147[[#This Row],[Bank Acct]],Table147[[#This Row],[Bank Acct]],Table147[[#Headers],[Amount]]:Table147[[#This Row],[Amount]]),"") ->  | H7: =IFERROR(INDEX([1]Lookup!$B$2:$C$7,MATCH(RIGHT(TRIM(Table147[[#This Row],[Description]]),4),[1]Lookup!$B$2:$B$7,0),2),"") ->  | I7: Peregrine | J7: Pmt | K7: =INDEX('[1]2023 Invoice Payments'!B:D,MATCH(#REF!,'[1]2023 Invoice Payments'!B:B,0),3) -> 
A8: WF | B8: 2024-01-19 | C8: RECURRING PAYMENT AUTHORIZED ON 01/18 Mailchimp 678-9990141 GA S464018381005079 CARD 2086 | D8: Expense | E8: -13.73 | G8: =IF(Table147[[#This Row],[Bank Acct]]=LEFT(Table147[[#Headers],[WF Balance]],2),SUMIF(Table147[[#Headers],[Bank Acct]]:Table147[[#This Row],[Bank Acct]],Table147[[#This Row],[Bank Acct]],Table147[[#Headers],[Amount]]:Table147[[#This Row],[Amount]]),"") -> -13.73 | H8: =IFERROR(INDEX([1]Lookup!$B$2:$C$7,MATCH(RIGHT(TRIM(Table147[[#This Row],[Description]]),4),[1]Lookup!$B$2:$B$7,0),2),"") -> LRC | I8: AE | J8: Mailchimp | K8: 240118 - AE - Mailchimp Essentials MC20075514.pdf
A9: WF | B9: 2024-01-22 | C9: RECURRING PAYMENT AUTHORIZED ON 01/20 Mailchimp 678-9990141 GA S584020346669793 CARD 2086 | D9: Client | E9: -75 | G9: =IF(Table147[[#This Row],[Bank Acct]]=LEFT(Table147[[#Headers],[WF Balance]],2),SUMIF(Table147[[#Headers],[Bank Acct]]:Table147[[#This Row],[Bank Acct]],Table147[[#This Row],[Bank Acct]],Table147[[#Headers],[Amount]]:Table147[[#This Row],[Amount]]),"") -> -88.73 | H9: =IFERROR(INDEX([1]Lookup!$B$2:$C$7,MATCH(RIGHT(TRIM(Table147[[#This Row],[Description]]),4),[1]Lookup!$B$2:$B$7,0),2),"") -> LRC | I9: Peregrine | J9: Mailchimp | K9: 240120 - Peregrine - Mailchimp Essentials MC20088462.pdf
A10: BA | B10: 2024-01-26 | C10: TRANSFER AVIAGLOBAL GROUP, LL:Aerospace Edge, LLC Confirmation# 0529198670 | D10: Transfer | E10: -2005 | F10: =IF(Table147[[#This Row],[Bank Acct]]=LEFT(Table147[[#Headers],[BA Balance]],2),SUMIF(Table147[[#Headers],[Bank Acct]]:Table147[[#This Row],[Bank Acct]],Table147[[#This Row],[Bank Acct]],Table147[[#Headers],[Amount]]:Table147[[#This Row],[Amount]]),"") -> 21.97 | G10: =IF(Table147[[#This Row],[Bank Acct]]=LEFT(Table147[[#Headers],[WF Balance]],2),SUMIF(Table147[[#Headers],[Bank Acct]]:Table147[[#This Row],[Bank Acct]],Table147[[#This Row],[Bank Acct]],Table147[[#Headers],[Amount]]:Table147[[#This Row],[Amount]]),"") ->  | H10: =IFERROR(INDEX([1]Lookup!$B$2:$C$7,MATCH(RIGHT(TRIM(Table147[[#This Row],[Description]]),4),[1]Lookup!$B$2:$B$7,0),2),"") ->  | I10: AE | J10: Transfer
A11: WF | B11: 2024-01-29 | C11: AVIAGLOBAL GROUP SENDER 240129 XXXXX5952 0000AEROSPACE EDGE, | D11: Income | E11: 2005 | G11: =IF(Table147[[#This Row],[Bank Acct]]=LEFT(Table147[[#Headers],[WF Balance]],2),SUMIF(Table147[[#Headers],[Bank Acct]]:Table147[[#This Row],[Bank Acct]],Table147[[#This Row],[Bank Acct]],Table147[[#Headers],[Amount]]:Table147[[#This Row],[Amount]]),"") -> 1916.27 | H11: =IFERROR(INDEX([1]Lookup!$B$2:$C$7,MATCH(RIGHT(TRIM(Table147[[#This Row],[Description]]),4),[1]Lookup!$B$2:$B$7,0),2),"") ->  | I11: AE | J11: Transfer
A12: BA | B12: 2024-01-29 | C12: External transfer fee - Next Day - 01/26/2024 Confirmation: 475021948 | D12: Expense | E12: -5 | F12: =IF(Table147[[#This Row],[Bank Acct]]=LEFT(Table147[[#Headers],[BA Balance]],2),SUMIF(Table147[[#Headers],[Bank Acct]]:Table147[[#This Row],[Bank Acct]],Table147[[#This Row],[Bank Acct]],Table147[[#Headers],[Amount]]:Table147[[#This Row],[Amount]]),"") -> 16.97 | G12: =IF(Table147[[#This Row],[Bank Acct]]=LEFT(Table147[[#Headers],[WF Balance]],2),SUMIF(Table147[[#Headers],[Bank Acct]]:Table147[[#This Row],[Bank Acct]],Table147[[#This Row],[Bank Acct]],Table147[[#Headers],[Amount]]:Table147[[#This Row],[Amount]]),"") ->  | H12: =IFERROR(INDEX([1]Lookup!$B$2:$C$7,MATCH(RIGHT(TRIM(Table147[[#This Row],[Description]]),4),[1]Lookup!$B$2:$B$7,0),2),"") ->  | I12: AE | J12: Bank Charge | K12: None available
A13: BA | B13: 2024-02-01 | C13: Monthly Fee Business Adv Relationship | D13: Expense | E13: -29.95 | F13: =IF(Table147[[#This Row],[Bank Acct]]=LEFT(Table147[[#Headers],[BA Balance]],2),SUMIF(Table147[[#Headers],[Bank Acct]]:Table147[[#This Row],[Bank Acct]],Table147[[#This Row],[Bank Acct]],Table147[[#Headers],[Amount]]:Table147[[#This Row],[Amount]]),"") -> -12.98 | G13: =IF(Table147[[#This Row],[Bank Acct]]=LEFT(Table147[[#Headers],[WF Balance]],2),SUMIF(Table147[[#Headers],[Bank Acct]]:Table147[[#This Row],[Bank Acct]],Table147[[#This Row],[Bank Acct]],Table147[[#Headers],[Amount]]:Table147[[#This Row],[Amount]]),"") ->  | H13: =IFERROR(INDEX([1]Lookup!$B$2:$C$7,MATCH(RIGHT(TRIM(Table147[[#This Row],[Description]]),4),[1]Lookup!$B$2:$B$7,0),2),"") ->  | I13: AE | J13: Bank Charge | K13: N/A
A14: BA | B14: 2024-02-09 | C14: INMOTIONHOSTING.C 02/08 PURCHASE 8883214678 CA DEBIT CARD *7429 | D14: Expense | E14: -39.98 | F14: =IF(Table147[[#This Row],[Bank Acct]]=LEFT(Table147[[#Headers],[BA Balance]],2),SUMIF(Table147[[#Headers],[Bank Acct]]:Table147[[#This Row],[Bank Acct]],Table147[[#This Row],[Bank Acct]],Table147[[#Headers],[Amount]]:Table147[[#This Row],[Amount]]),"") -> -52.96 | G14: =IF(Table147[[#This Row],[Bank Acct]]=LEFT(Table147[[#Headers],[WF Balance]],2),SUMIF(Table147[[#Headers],[Bank Acct]]:Table147[[#This Row],[Bank Acct]],Table147[[#This Row],[Bank Acct]],Table147[[#Headers],[Amount]]:Table147[[#This Row],[Amount]]),"") ->  | H14: =IFERROR(INDEX([1]Lookup!$B$2:$C$7,MATCH(RIGHT(TRIM(Table147[[#This Row],[Description]]),4),[1]Lookup!$B$2:$B$7,0),2),"") -> FWC | I14: AE | J14: Web Tools | K14: 240209 - InMotion Hosting - Receipt - IMH-314-144898-131.pdf
A15: WF | B15: 2024-02-13 | C15: RECURRING PAYMENT AUTHORIZED ON 02/12 STK*Shutterstock 866-6633954 NY S464043705491573 CARD 2086 | D15: Expense | E15: -23.2 | G15: =IF(Table147[[#This Row],[Bank Acct]]=LEFT(Table147[[#Headers],[WF Balance]],2),SUMIF(Table147[[#Headers],[Bank Acct]]:Table147[[#This Row],[Bank Acct]],Table147[[#This Row],[Bank Acct]],Table147[[#Headers],[Amount]]:Table147[[#This Row],[Amount]]),"") -> 1893.07 | H15: =IFERROR(INDEX([1]Lookup!$B$2:$C$7,MATCH(RIGHT(TRIM(Table147[[#This Row],[Description]]),4),[1]Lookup!$B$2:$B$7,0),2),"") -> LRC | I15: Peregrine | J15: Images | K15: 240212 - Shutterstock CS-09F54-1CD2.pdf
A16: WF | B16: 2024-02-15 | C16: CHECK # 3001 | D16: Expense | E16: -35 | G16: =IF(Table147[[#This Row],[Bank Acct]]=LEFT(Table147[[#Headers],[WF Balance]],2),SUMIF(Table147[[#Headers],[Bank Acct]]:Table147[[#This Row],[Bank Acct]],Table147[[#This Row],[Bank Acct]],Table147[[#Headers],[Amount]]:Table147[[#This Row],[Amount]]),"") -> 1858.07 | H16: =IFERROR(INDEX([1]Lookup!$B$2:$C$7,MATCH(RIGHT(TRIM(Table147[[#This Row],[Description]]),4),[1]Lookup!$B$2:$B$7,0),2),"") ->  | I16: AE | J16: Legal Fees
A17: WF | B17: 2024-02-20 | C17: RECURRING PAYMENT AUTHORIZED ON 02/18 Mailchimp 678-9990141 GA S584049370936633 CARD 2086 | D17: Expense | E17: -13.73 | G17: =IF(Table147[[#This Row],[Bank Acct]]=LEFT(Table147[[#Headers],[WF Balance]],2),SUMIF(Table147[[#Headers],[Bank Acct]]:Table147[[#This Row],[Bank Acct]],Table147[[#This Row],[Bank Acct]],Table147[[#Headers],[Amount]]:Table147[[#This Row],[Amount]]),"") -> 1844.34 | H17: =IFERROR(INDEX([1]Lookup!$B$2:$C$7,MATCH(RIGHT(TRIM(Table147[[#This Row],[Description]]),4),[1]Lookup!$B$2:$B$7,0),2),"") -> LRC | I17: AE | J17: Mailchimp | K17: 240218 - AE - Mailchimp Essentials MC20279598.pdf
A18: WF | B18: 2024-02-21 | C18: RECURRING PAYMENT AUTHORIZED ON 02/20 Mailchimp 678-9990141 GA S464051414345651 CARD 2086 | D18: Client | E18: -75 | G18: =IF(Table147[[#This Row],[Bank Acct]]=LEFT(Table147[[#Headers],[WF Balance]],2),SUMIF(Table147[[#Headers],[Bank Acct]]:Table147[[#This Row],[Bank Acct]],Table147[[#This Row],[Bank Acct]],Table147[[#Headers],[Amount]]:Table147[[#This Row],[Amount]]),"") -> 1769.34 | H18: =IFERROR(INDEX([1]Lookup!$B$2:$C$7,MATCH(RIGHT(TRIM(Table147[[#This Row],[Description]]),4),[1]Lookup!$B$2:$B$7,0),2),"") -> LRC | I18: Peregrine | J18: Mailchimp | K18: 240220 - Peregrine - Mailchimp Essentials MC20297922.pdf
A19: BA | B19: 2024-03-01 | C19: Monthly Fee Business Adv Relationship | D19: Expense | E19: -29.95 | F19: =IF(Table147[[#This Row],[Bank Acct]]=LEFT(Table147[[#Headers],[BA Balance]],2),SUMIF(Table147[[#Headers],[Bank Acct]]:Table147[[#This Row],[Bank Acct]],Table147[[#This Row],[Bank Acct]],Table147[[#Headers],[Amount]]:Table147[[#This Row],[Amount]]),"") -> -82.91 | G19: =IF(Table147[[#This Row],[Bank Acct]]=LEFT(Table147[[#Headers],[WF Balance]],2),SUMIF(Table147[[#Headers],[Bank Acct]]:Table147[[#This Row],[Bank Acct]],Table147[[#This Row],[Bank Acct]],Table147[[#Headers],[Amount]]:Table147[[#This Row],[Amount]]),"") ->  | H19: =IFERROR(INDEX([1]Lookup!$B$2:$C$7,MATCH(RIGHT(TRIM(Table147[[#This Row],[Description]]),4),[1]Lookup!$B$2:$B$7,0),2),"") ->  | I19: AE | J19: Bank Charge | K19: N/A
A20: WF | B20: 2024-03-06 | C20: RECURRING PAYMENT AUTHORIZED ON 03/05 AIOSEO.COM - DE HTTPSAIOSEO.C FL S304065545513425 CARD 5623 | D20: Expense | E20: -4.92 | F20: =IF(Table147[[#This Row],[Bank Acct]]=LEFT(Table147[[#Headers],[BA Balance]],2),SUMIF(Table147[[#Headers],[Bank Acct]]:Table147[[#This Row],[Bank Acct]],Table147[[#This Row],[Bank Acct]],Table147[[#Headers],[Amount]]:Table147[[#This Row],[Amount]]),"") ->  | G20: =IF(Table147[[#This Row],[Bank Acct]]=LEFT(Table147[[#Headers],[WF Balance]],2),SUMIF(Table147[[#Headers],[Bank Acct]]:Table147[[#This Row],[Bank Acct]],Table147[[#This Row],[Bank Acct]],Table147[[#Headers],[Amount]]:Table147[[#This Row],[Amount]]),"") -> 1764.42 | H20: =IFERROR(INDEX([1]Lookup!$B$2:$C$7,MATCH(RIGHT(TRIM(Table147[[#This Row],[Description]]),4),[1]Lookup!$B$2:$B$7,0),2),"") -> FWC | I20: Web Hosting | J20: Web Tools
A21: WF | B21: 2024-03-07 | C21: ONLINE TRANSFER TO COLLIVER F REF #IB0MH629Y2 CHECKING ANG INVOICE 2024.9001 | D21: Expense | E21: -1050.47 | F21: =IF(Table147[[#This Row],[Bank Acct]]=LEFT(Table147[[#Headers],[BA Balance]],2),SUMIF(Table147[[#Headers],[Bank Acct]]:Table147[[#This Row],[Bank Acct]],Table147[[#This Row],[Bank Acct]],Table147[[#Headers],[Amount]]:Table147[[#This Row],[Amount]]),"") ->  | G21: =IF(Table147[[#This Row],[Bank Acct]]=LEFT(Table147[[#Headers],[WF Balance]],2),SUMIF(Table147[[#Headers],[Bank Acct]]:Table147[[#This Row],[Bank Acct]],Table147[[#This Row],[Bank Acct]],Table147[[#Headers],[Amount]]:Table147[[#This Row],[Amount]]),"") -> 713.95 | H21: =IFERROR(INDEX([1]Lookup!$B$2:$C$7,MATCH(RIGHT(TRIM(Table147[[#This Row],[Description]]),4),[1]Lookup!$B$2:$B$7,0),2),"") ->  | J21: Reimbursement | K21: 240307 - ANG Invoice 2024-9001 (with receipts).pdf
A22: WF | B22: 2024-03-07 | C22: ONLINE TRANSFER TO COLLIVER F REF #IB0MH62PHW CHECKING ANG INVOICE 2024.9002 | D22: Expense | E22: -832.86 | F22: =IF(Table147[[#This Row],[Bank Acct]]=LEFT(Table147[[#Headers],[BA Balance]],2),SUMIF(Table147[[#Headers],[Bank Acct]]:Table147[[#This Row],[Bank Acct]],Table147[[#This Row],[Bank Acct]],Table147[[#Headers],[Amount]]:Table147[[#This Row],[Amount]]),"") ->  | G22: =IF(Table147[[#This Row],[Bank Acct]]=LEFT(Table147[[#Headers],[WF Balance]],2),SUMIF(Table147[[#Headers],[Bank Acct]]:Table147[[#This Row],[Bank Acct]],Table147[[#This Row],[Bank Acct]],Table147[[#Headers],[Amount]]:Table147[[#This Row],[Amount]]),"") -> -118.91 | H22: =IFERROR(INDEX([1]Lookup!$B$2:$C$7,MATCH(RIGHT(TRIM(Table147[[#This Row],[Description]]),4),[1]Lookup!$B$2:$B$7,0),2),"") ->  | J22: Reimbursement | K22: 240307 - ANG Invoice 2024-9002 (with receipts).pdf
A23: WF | B23: 2024-03-07 | C23: ONLINE TRANSFER TO COLLIVER F REF #IB0MH64FQ8 CHECKING ANG INVOICE 2024.9004 | D23: Expense | E23: -521.47 | F23: =IF(Table147[[#This Row],[Bank Acct]]=LEFT(Table147[[#Headers],[BA Balance]],2),SUMIF(Table147[[#Headers],[Bank Acct]]:Table147[[#This Row],[Bank Acct]],Table147[[#This Row],[Bank Acct]],Table147[[#Headers],[Amount]]:Table147[[#This Row],[Amount]]),"") ->  | G23: =IF(Table147[[#This Row],[Bank Acct]]=LEFT(Table147[[#Headers],[WF Balance]],2),SUMIF(Table147[[#Headers],[Bank Acct]]:Table147[[#This Row],[Bank Acct]],Table147[[#This Row],[Bank Acct]],Table147[[#Headers],[Amount]]:Table147[[#This Row],[Amount]]),"") -> -640.38 | H23: =IFERROR(INDEX([1]Lookup!$B$2:$C$7,MATCH(RIGHT(TRIM(Table147[[#This Row],[Description]]),4),[1]Lookup!$B$2:$B$7,0),2),"") ->  | J23: Reimbursement | K23: 240307 - ANG Invoice 2024-9004 (with receipts).pdf
A24: WF | B24: 2024-03-07 | C24: ONLINE TRANSFER TO COLLIVER F REF #IB0MH67R6Y CHECKING ANG INVOICE 2024.9003 | D24: Expense | E24: -1050.47 | F24: =IF(Table147[[#This Row],[Bank Acct]]=LEFT(Table147[[#Headers],[BA Balance]],2),SUMIF(Table147[[#Headers],[Bank Acct]]:Table147[[#This Row],[Bank Acct]],Table147[[#This Row],[Bank Acct]],Table147[[#Headers],[Amount]]:Table147[[#This Row],[Amount]]),"") ->  | G24: =IF(Table147[[#This Row],[Bank Acct]]=LEFT(Table147[[#Headers],[WF Balance]],2),SUMIF(Table147[[#Headers],[Bank Acct]]:Table147[[#This Row],[Bank Acct]],Table147[[#This Row],[Bank Acct]],Table147[[#Headers],[Amount]]:Table147[[#This Row],[Amount]]),"") -> -1690.85 | H24: =IFERROR(INDEX([1]Lookup!$B$2:$C$7,MATCH(RIGHT(TRIM(Table147[[#This Row],[Description]]),4),[1]Lookup!$B$2:$B$7,0),2),"") ->  | J24: Reimbursement | K24: 240307 - ANG Invoice 2024-9003 (with receipts).pdf
A25: WF | B25: 2024-03-07 | C25: PEREGRINE AVIONI QUICKBOOKS 240307 XXXXX3858 AEROSPACE EDGE, LLC | D25: Income | E25: 2147.75 | F25: =IF(Table147[[#This Row],[Bank Acct]]=LEFT(Table147[[#Headers],[BA Balance]],2),SUMIF(Table147[[#Headers],[Bank Acct]]:Table147[[#This Row],[Bank Acct]],Table147[[#This Row],[Bank Acct]],Table147[[#Headers],[Amount]]:Table147[[#This Row],[Amount]]),"") ->  | G25: =IF(Table147[[#This Row],[Bank Acct]]=LEFT(Table147[[#Headers],[WF Balance]],2),SUMIF(Table147[[#Headers],[Bank Acct]]:Table147[[#This Row],[Bank Acct]],Table147[[#This Row],[Bank Acct]],Table147[[#Headers],[Amount]]:Table147[[#This Row],[Amount]]),"") -> 456.9 | H25: =IFERROR(INDEX([1]Lookup!$B$2:$C$7,MATCH(RIGHT(TRIM(Table147[[#This Row],[Description]]),4),[1]Lookup!$B$2:$B$7,0),2),"") ->  | I25: Peregrine | J25: Pmt
A26: WF | B26: 2024-03-13 | C26: RECURRING PAYMENT AUTHORIZED ON 03/12 STK*Shutterstock 866-6633954 NY S584072273781855 CARD 2086 | D26: Expense | E26: -29 | F26: =IF(Table147[[#This Row],[Bank Acct]]=LEFT(Table147[[#Headers],[BA Balance]],2),SUMIF(Table147[[#Headers],[Bank Acct]]:Table147[[#This Row],[Bank Acct]],Table147[[#This Row],[Bank Acct]],Table147[[#Headers],[Amount]]:Table147[[#This Row],[Amount]]),"") ->  | G26: =IF(Table147[[#This Row],[Bank Acct]]=LEFT(Table147[[#Headers],[WF Balance]],2),SUMIF(Table147[[#Headers],[Bank Acct]]:Table147[[#This Row],[Bank Acct]],Table147[[#This Row],[Bank Acct]],Table147[[#Headers],[Amount]]:Table147[[#This Row],[Amount]]),"") -> 427.9 | H26: =IFERROR(INDEX([1]Lookup!$B$2:$C$7,MATCH(RIGHT(TRIM(Table147[[#This Row],[Description]]),4),[1]Lookup!$B$2:$B$7,0),2),"") -> LRC | I26: Web Hosting | J26: Images | K26: 240312 - Shutterstock CS-0F1ED-AC18.pdf
A27: WF | B27: 2024-03-18 | C27: RECURRING PAYMENT AUTHORIZED ON 03/16 AIOSEO.COM - DE HTTPSAIOSEO.C FL S464076608818000 CARD 5623 | D27: Expense | E27: -249 | F27: =IF(Table147[[#This Row],[Bank Acct]]=LEFT(Table147[[#Headers],[BA Balance]],2),SUMIF(Table147[[#Headers],[Bank Acct]]:Table147[[#This Row],[Bank Acct]],Table147[[#This Row],[Bank Acct]],Table147[[#Headers],[Amount]]:Table147[[#This Row],[Amount]]),"") ->  | G27: =IF(Table147[[#This Row],[Bank Acct]]=LEFT(Table147[[#Headers],[WF Balance]],2),SUMIF(Table147[[#Headers],[Bank Acct]]:Table147[[#This Row],[Bank Acct]],Table147[[#This Row],[Bank Acct]],Table147[[#Headers],[Amount]]:Table147[[#This Row],[Amount]]),"") -> 178.9 | H27: =IFERROR(INDEX([1]Lookup!$B$2:$C$7,MATCH(RIGHT(TRIM(Table147[[#This Row],[Description]]),4),[1]Lookup!$B$2:$B$7,0),2),"") -> FWC | I27: Web Hosting | J27: Web Tools
A28: WF | B28: 2024-03-19 | C28: RECURRING PAYMENT AUTHORIZED ON 03/18 Mailchimp 678-9990141 GA S584078398775409 CARD 2086 | D28: Expense | E28: -13.73 | F28: =IF(Table147[[#This Row],[Bank Acct]]=LEFT(Table147[[#Headers],[BA Balance]],2),SUMIF(Table147[[#Headers],[Bank Acct]]:Table147[[#This Row],[Bank Acct]],Table147[[#This Row],[Bank Acct]],Table147[[#Headers],[Amount]]:Table147[[#This Row],[Amount]]),"") ->  | G28: =IF(Table147[[#This Row],[Bank Acct]]=LEFT(Table147[[#Headers],[WF Balance]],2),SUMIF(Table147[[#Headers],[Bank Acct]]:Table147[[#This Row],[Bank Acct]],Table147[[#This Row],[Bank Acct]],Table147[[#Headers],[Amount]]:Table147[[#This Row],[Amount]]),"") -> 165.17 | H28: =IFERROR(INDEX([1]Lookup!$B$2:$C$7,MATCH(RIGHT(TRIM(Table147[[#This Row],[Description]]),4),[1]Lookup!$B$2:$B$7,0),2),"") -> LRC | I28: AE | J28: Mailchimp | K28: 240318 - AE - Mailchimp Essentials MC20487766.pdf
A29: WF | B29: 2024-03-21 | C29: RECURRING PAYMENT AUTHORIZED ON 03/20 Mailchimp 678-9990141 GA S464080382983322 CARD 2086 | D29: Client | E29: -75 | F29: =IF(Table147[[#This Row],[Bank Acct]]=LEFT(Table147[[#Headers],[BA Balance]],2),SUMIF(Table147[[#Headers],[Bank Acct]]:Table147[[#This Row],[Bank Acct]],Table147[[#This Row],[Bank Acct]],Table147[[#Headers],[Amount]]:Table147[[#This Row],[Amount]]),"") ->  | G29: =IF(Table147[[#This Row],[Bank Acct]]=LEFT(Table147[[#Headers],[WF Balance]],2),SUMIF(Table147[[#Headers],[Bank Acct]]:Table147[[#This Row],[Bank Acct]],Table147[[#This Row],[Bank Acct]],Table147[[#Headers],[Amount]]:Table147[[#This Row],[Amount]]),"") -> 90.17 | H29: =IFERROR(INDEX([1]Lookup!$B$2:$C$7,MATCH(RIGHT(TRIM(Table147[[#This Row],[Description]]),4),[1]Lookup!$B$2:$B$7,0),2),"") -> LRC | I29: Peregrine | J29: Mailchimp | K29: 240320 - Peregrine - Mailchimp Essentials MC20501058.pdf
A30: WF | B30: 2024-03-21 | C30: RECURRING PAYMENT AUTHORIZED ON 03/20 POWERDMARC HTTPSPOWERDMA DE S304081081458778 CARD 5623 | D30: Expense | E30: -45 | F30: =IF(Table147[[#This Row],[Bank Acct]]=LEFT(Table147[[#Headers],[BA Balance]],2),SUMIF(Table147[[#Headers],[Bank Acct]]:Table147[[#This Row],[Bank Acct]],Table147[[#This Row],[Bank Acct]],Table147[[#Headers],[Amount]]:Table147[[#This Row],[Amount]]),"") ->  | G30: =IF(Table147[[#This Row],[Bank Acct]]=LEFT(Table147[[#Headers],[WF Balance]],2),SUMIF(Table147[[#Headers],[Bank Acct]]:Table147[[#This Row],[Bank Acct]],Table147[[#This Row],[Bank Acct]],Table147[[#Headers],[Amount]]:Table147[[#This Row],[Amount]]),"") -> 45.17 | H30: =IFERROR(INDEX([1]Lookup!$B$2:$C$7,MATCH(RIGHT(TRIM(Table147[[#This Row],[Description]]),4),[1]Lookup!$B$2:$B$7,0),2),"") -> FWC | I30: Web Hosting | J30: Web Hosting
A31: WF | B31: 2024-03-25 | C31: RECURRING PAYMENT AUTHORIZED ON 03/24 FREEMIUS* MEDIA SY HTTPSFREEMIUS DE S464084578208249 CARD 5623 | D31: Expense | E31: -14.99 | F31: =IF(Table147[[#This Row],[Bank Acct]]=LEFT(Table147[[#Headers],[BA Balance]],2),SUMIF(Table147[[#Headers],[Bank Acct]]:Table147[[#This Row],[Bank Acct]],Table147[[#This Row],[Bank Acct]],Table147[[#Headers],[Amount]]:Table147[[#This Row],[Amount]]),"") ->  | G31: =IF(Table147[[#This Row],[Bank Acct]]=LEFT(Table147[[#Headers],[WF Balance]],2),SUMIF(Table147[[#Headers],[Bank Acct]]:Table147[[#This Row],[Bank Acct]],Table147[[#This Row],[Bank Acct]],Table147[[#Headers],[Amount]]:Table147[[#This Row],[Amount]]),"") -> 30.18 | H31: =IFERROR(INDEX([1]Lookup!$B$2:$C$7,MATCH(RIGHT(TRIM(Table147[[#This Row],[Description]]),4),[1]Lookup!$B$2:$B$7,0),2),"") -> FWC | I31: Web Hosting | J31: Web Tools
A32: BA | B32: 2024-04-01 | C32: Monthly Fee Business Adv Relationship | D32: Expense | E32: -29.95 | F32: =IF(Table147[[#This Row],[Bank Acct]]=LEFT(Table147[[#Headers],[BA Balance]],2),SUMIF(Table147[[#Headers],[Bank Acct]]:Table147[[#This Row],[Bank Acct]],Table147[[#This Row],[Bank Acct]],Table147[[#Headers],[Amount]]:Table147[[#This Row],[Amount]]),"") -> -112.86 | G32: =IF(Table147[[#This Row],[Bank Acct]]=LEFT(Table147[[#Headers],[WF Balance]],2),SUMIF(Table147[[#Headers],[Bank Acct]]:Table147[[#This Row],[Bank Acct]],Table147[[#This Row],[Bank Acct]],Table147[[#Headers],[Amount]]:Table147[[#This Row],[Amount]]),"") ->  | H32: =IFERROR(INDEX([1]Lookup!$B$2:$C$7,MATCH(RIGHT(TRIM(Table147[[#This Row],[Description]]),4),[1]Lookup!$B$2:$B$7,0),2),"") ->  | I32: AE | J32: Bank Charge
A33: BA | B33: 2024-04-02 | C33: STK*Shutterstock 04/02 PURCHASE 8666633954 NY DEBIT CARD *7411 | D33: Expense | E33: -49 | F33: =IF(Table147[[#This Row],[Bank Acct]]=LEFT(Table147[[#Headers],[BA Balance]],2),SUMIF(Table147[[#Headers],[Bank Acct]]:Table147[[#This Row],[Bank Acct]],Table147[[#This Row],[Bank Acct]],Table147[[#Headers],[Amount]]:Table147[[#This Row],[Amount]]),"") -> -161.86 | G33: =IF(Table147[[#This Row],[Bank Acct]]=LEFT(Table147[[#Headers],[WF Balance]],2),SUMIF(Table147[[#Headers],[Bank Acct]]:Table147[[#This Row],[Bank Acct]],Table147[[#This Row],[Bank Acct]],Table147[[#Headers],[Amount]]:Table147[[#This Row],[Amount]]),"") ->  | H33: =IFERROR(INDEX([1]Lookup!$B$2:$C$7,MATCH(RIGHT(TRIM(Table147[[#This Row],[Description]]),4),[1]Lookup!$B$2:$B$7,0),2),"") -> LRC | I33: Web Hosting | J33: Images | K33: Missing receipt
A34: WF | B34: 2024-04-03 | C34: PEREGRINE AVIONI QUICKBOOKS 240403 XXXXX3858 AEROSPACE EDGE, LLC | D34: Income | E34: 2075 | F34: =IF(Table147[[#This Row],[Bank Acct]]=LEFT(Table147[[#Headers],[BA Balance]],2),SUMIF(Table147[[#Headers],[Bank Acct]]:Table147[[#This Row],[Bank Acct]],Table147[[#This Row],[Bank Acct]],Table147[[#Headers],[Amount]]:Table147[[#This Row],[Amount]]),"") ->  | G34: =IF(Table147[[#This Row],[Bank Acct]]=LEFT(Table147[[#Headers],[WF Balance]],2),SUMIF(Table147[[#Headers],[Bank Acct]]:Table147[[#This Row],[Bank Acct]],Table147[[#This Row],[Bank Acct]],Table147[[#Headers],[Amount]]:Table147[[#This Row],[Amount]]),"") -> 2105.18 | H34: =IFERROR(INDEX([1]Lookup!$B$2:$C$7,MATCH(RIGHT(TRIM(Table147[[#This Row],[Description]]),4),[1]Lookup!$B$2:$B$7,0),2),"") ->  | I34: Peregrine | J34: Pmt
A35: WF | B35: 2024-04-03 | C35: PURCHASE AUTHORIZED ON 04/02 PADDLE.NET* PLUGIN PADDLE.COM NY S384093485840347 CARD 5623 | D35: Expense | E35: -16.29 | F35: =IF(Table147[[#This Row],[Bank Acct]]=LEFT(Table147[[#Headers],[BA Balance]],2),SUMIF(Table147[[#Headers],[Bank Acct]]:Table147[[#This Row],[Bank Acct]],Table147[[#This Row],[Bank Acct]],Table147[[#Headers],[Amount]]:Table147[[#This Row],[Amount]]),"") ->  | G35: =IF(Table147[[#This Row],[Bank Acct]]=LEFT(Table147[[#Headers],[WF Balance]],2),SUMIF(Table147[[#Headers],[Bank Acct]]:Table147[[#This Row],[Bank Acct]],Table147[[#This Row],[Bank Acct]],Table147[[#Headers],[Amount]]:Table147[[#This Row],[Amount]]),"") -> 2088.89 | H35: =IFERROR(INDEX([1]Lookup!$B$2:$C$7,MATCH(RIGHT(TRIM(Table147[[#This Row],[Description]]),4),[1]Lookup!$B$2:$B$7,0),2),"") -> FWC | I35: Web Hosting | J35: Web Tools
A36: WF | B36: 2024-04-03 | C36: RECURRING PAYMENT AUTHORIZED ON 04/02 CROCOBLOCK.COM HTTPSCROCOBLO FL S464093522839830 CARD 5623 | D36: Expense | E36: -88 | F36: =IF(Table147[[#This Row],[Bank Acct]]=LEFT(Table147[[#Headers],[BA Balance]],2),SUMIF(Table147[[#Headers],[Bank Acct]]:Table147[[#This Row],[Bank Acct]],Table147[[#This Row],[Bank Acct]],Table147[[#Headers],[Amount]]:Table147[[#This Row],[Amount]]),"") ->  | G36: =IF(Table147[[#This Row],[Bank Acct]]=LEFT(Table147[[#Headers],[WF Balance]],2),SUMIF(Table147[[#Headers],[Bank Acct]]:Table147[[#This Row],[Bank Acct]],Table147[[#This Row],[Bank Acct]],Table147[[#Headers],[Amount]]:Table147[[#This Row],[Amount]]),"") -> 2000.89 | H36: =IFERROR(INDEX([1]Lookup!$B$2:$C$7,MATCH(RIGHT(TRIM(Table147[[#This Row],[Description]]),4),[1]Lookup!$B$2:$B$7,0),2),"") -> FWC | I36: Web Hosting | J36: Web Tools
A37: WF | B37: 2024-04-04 | C37: ONLINE TRANSFER TO COLLIVER F REF #IB0MRRLLFZ CHECKING 240403 ANG INVOICE 20249005 | D37: Expense | E37: -701.18 | F37: =IF(Table147[[#This Row],[Bank Acct]]=LEFT(Table147[[#Headers],[BA Balance]],2),SUMIF(Table147[[#Headers],[Bank Acct]]:Table147[[#This Row],[Bank Acct]],Table147[[#This Row],[Bank Acct]],Table147[[#Headers],[Amount]]:Table147[[#This Row],[Amount]]),"") ->  | G37: =IF(Table147[[#This Row],[Bank Acct]]=LEFT(Table147[[#Headers],[WF Balance]],2),SUMIF(Table147[[#Headers],[Bank Acct]]:Table147[[#This Row],[Bank Acct]],Table147[[#This Row],[Bank Acct]],Table147[[#Headers],[Amount]]:Table147[[#This Row],[Amount]]),"") -> 1299.71 | H37: =IFERROR(INDEX([1]Lookup!$B$2:$C$7,MATCH(RIGHT(TRIM(Table147[[#This Row],[Description]]),4),[1]Lookup!$B$2:$B$7,0),2),"") ->  | J37: Reimbursement | K37: 240403 - ANG Invoice 2024-9005.pdf
A38: WF | B38: 2024-04-10 | C38: RECURRING PAYMENT REVERSAL ON 04/08 CROCOBLOCK.COM HTTPSCROCOBLO FL S304099752111462 CARD 5623 | D38: Expense | E38: 88 | F38: =IF(Table147[[#This Row],[Bank Acct]]=LEFT(Table147[[#Headers],[BA Balance]],2),SUMIF(Table147[[#Headers],[Bank Acct]]:Table147[[#This Row],[Bank Acct]],Table147[[#This Row],[Bank Acct]],Table147[[#Headers],[Amount]]:Table147[[#This Row],[Amount]]),"") ->  | G38: =IF(Table147[[#This Row],[Bank Acct]]=LEFT(Table147[[#Headers],[WF Balance]],2),SUMIF(Table147[[#Headers],[Bank Acct]]:Table147[[#This Row],[Bank Acct]],Table147[[#This Row],[Bank Acct]],Table147[[#Headers],[Amount]]:Table147[[#This Row],[Amount]]),"") -> 1387.71 | H38: =IFERROR(INDEX([1]Lookup!$B$2:$C$7,MATCH(RIGHT(TRIM(Table147[[#This Row],[Description]]),4),[1]Lookup!$B$2:$B$7,0),2),"") -> FWC | I38: Web Hosting | J38: Web Tools | K38: No invoice
A39: WF | B39: 2024-04-11 | C39: RECURRING PAYMENT AUTHORIZED ON 04/10 CROCOBLOCK.COM HTTPSCROCOBLO FL S464102018313362 CARD 5623 | D39: Expense | E39: -49 | F39: =IF(Table147[[#This Row],[Bank Acct]]=LEFT(Table147[[#Headers],[BA Balance]],2),SUMIF(Table147[[#Headers],[Bank Acct]]:Table147[[#This Row],[Bank Acct]],Table147[[#This Row],[Bank Acct]],Table147[[#Headers],[Amount]]:Table147[[#This Row],[Amount]]),"") ->  | G39: =IF(Table147[[#This Row],[Bank Acct]]=LEFT(Table147[[#Headers],[WF Balance]],2),SUMIF(Table147[[#Headers],[Bank Acct]]:Table147[[#This Row],[Bank Acct]],Table147[[#This Row],[Bank Acct]],Table147[[#Headers],[Amount]]:Table147[[#This Row],[Amount]]),"") -> 1338.71 | H39: =IFERROR(INDEX([1]Lookup!$B$2:$C$7,MATCH(RIGHT(TRIM(Table147[[#This Row],[Description]]),4),[1]Lookup!$B$2:$B$7,0),2),"") -> FWC | I39: Web Hosting | J39: Web Tools
A40: WF | B40: 2024-04-15 | C40: RECURRING PAYMENT AUTHORIZED ON 04/12 STK*Shutterstock 866-6633954 NY S584072273781855 CARD 2086 | D40: Expense | E40: -29 | F40: =IF(Table147[[#This Row],[Bank Acct]]=LEFT(Table147[[#Headers],[BA Balance]],2),SUMIF(Table147[[#Headers],[Bank Acct]]:Table147[[#This Row],[Bank Acct]],Table147[[#This Row],[Bank Acct]],Table147[[#Headers],[Amount]]:Table147[[#This Row],[Amount]]),"") ->  | G40: =IF(Table147[[#This Row],[Bank Acct]]=LEFT(Table147[[#Headers],[WF Balance]],2),SUMIF(Table147[[#Headers],[Bank Acct]]:Table147[[#This Row],[Bank Acct]],Table147[[#This Row],[Bank Acct]],Table147[[#Headers],[Amount]]:Table147[[#This Row],[Amount]]),"") -> 1309.71 | H40: =IFERROR(INDEX([1]Lookup!$B$2:$C$7,MATCH(RIGHT(TRIM(Table147[[#This Row],[Description]]),4),[1]Lookup!$B$2:$B$7,0),2),"") -> LRC | I40: Web Hosting | J40: Images | K40: 240412 - Shutterstock CS-04D82-0EED.pdf
A41: WF | B41: 2024-04-18 | C41: PEREGRINE AVIONI QUICKBOOKS 240418 XXXXX3858 AEROSPACE EDGE, LLC | D41: Income | E41: 2000 | F41: =IF(Table147[[#This Row],[Bank Acct]]=LEFT(Table147[[#Headers],[BA Balance]],2),SUMIF(Table147[[#Headers],[Bank Acct]]:Table147[[#This Row],[Bank Acct]],Table147[[#This Row],[Bank Acct]],Table147[[#Headers],[Amount]]:Table147[[#This Row],[Amount]]),"") ->  | G41: =IF(Table147[[#This Row],[Bank Acct]]=LEFT(Table147[[#Headers],[WF Balance]],2),SUMIF(Table147[[#Headers],[Bank Acct]]:Table147[[#This Row],[Bank Acct]],Table147[[#This Row],[Bank Acct]],Table147[[#Headers],[Amount]]:Table147[[#This Row],[Amount]]),"") -> 3309.71 | I41: Peregrine | J41: Pmt
A42: WF | B42: 2024-04-18 | C42: PEREGRINE AVIONI QUICKBOOKS 240418 XXXXX3858 AEROSPACE EDGE, LLC | D42: Income | E42: 2075 | F42: =IF(Table147[[#This Row],[Bank Acct]]=LEFT(Table147[[#Headers],[BA Balance]],2),SUMIF(Table147[[#Headers],[Bank Acct]]:Table147[[#This Row],[Bank Acct]],Table147[[#This Row],[Bank Acct]],Table147[[#Headers],[Amount]]:Table147[[#This Row],[Amount]]),"") ->  | G42: =IF(Table147[[#This Row],[Bank Acct]]=LEFT(Table147[[#Headers],[WF Balance]],2),SUMIF(Table147[[#Headers],[Bank Acct]]:Table147[[#This Row],[Bank Acct]],Table147[[#This Row],[Bank Acct]],Table147[[#Headers],[Amount]]:Table147[[#This Row],[Amount]]),"") -> 5384.71 | H42: =IFERROR(INDEX([1]Lookup!$B$2:$C$7,MATCH(RIGHT(TRIM(Table147[[#This Row],[Description]]),4),[1]Lookup!$B$2:$B$7,0),2),"") ->  | I42: Peregrine | J42: Pmt
A43: WF | B43: 2024-04-19 | C43: RECURRING PAYMENT AUTHORIZED ON 04/18 Mailchimp 678-9990141 GA S464109379579139 CARD 2086 | D43: Expense | E43: -13.73 | F43: =IF(Table147[[#This Row],[Bank Acct]]=LEFT(Table147[[#Headers],[BA Balance]],2),SUMIF(Table147[[#Headers],[Bank Acct]]:Table147[[#This Row],[Bank Acct]],Table147[[#This Row],[Bank Acct]],Table147[[#Headers],[Amount]]:Table147[[#This Row],[Amount]]),"") ->  | G43: =IF(Table147[[#This Row],[Bank Acct]]=LEFT(Table147[[#Headers],[WF Balance]],2),SUMIF(Table147[[#Headers],[Bank Acct]]:Table147[[#This Row],[Bank Acct]],Table147[[#This Row],[Bank Acct]],Table147[[#Headers],[Amount]]:Table147[[#This Row],[Amount]]),"") -> 5370.98 | H43: =IFERROR(INDEX([1]Lookup!$B$2:$C$7,MATCH(RIGHT(TRIM(Table147[[#This Row],[Description]]),4),[1]Lookup!$B$2:$B$7,0),2),"") -> LRC | I43: AE | J43: Mailchimp | K43: 240418 - AE - Mailchimp Essentials MC20694506.pdf
A44: WF | B44: 2024-04-22 | C44: RECURRING PAYMENT AUTHORIZED ON 04/20 Mailchimp 678-9990141 GA S584111409910024 CARD 2086 | D44: Expense | E44: -45 | F44: =IF(Table147[[#This Row],[Bank Acct]]=LEFT(Table147[[#Headers],[BA Balance]],2),SUMIF(Table147[[#Headers],[Bank Acct]]:Table147[[#This Row],[Bank Acct]],Table147[[#This Row],[Bank Acct]],Table147[[#Headers],[Amount]]:Table147[[#This Row],[Amount]]),"") ->  | G44: =IF(Table147[[#This Row],[Bank Acct]]=LEFT(Table147[[#Headers],[WF Balance]],2),SUMIF(Table147[[#Headers],[Bank Acct]]:Table147[[#This Row],[Bank Acct]],Table147[[#This Row],[Bank Acct]],Table147[[#Headers],[Amount]]:Table147[[#This Row],[Amount]]),"") -> 5325.98 | H44: =IFERROR(INDEX([1]Lookup!$B$2:$C$7,MATCH(RIGHT(TRIM(Table147[[#This Row],[Description]]),4),[1]Lookup!$B$2:$B$7,0),2),"") -> LRC | I44: AE | J44: Mailchimp | K44: Unknown
A45: WF | B45: 2024-04-22 | C45: RECURRING PAYMENT AUTHORIZED ON 04/20 POWERDMARC HTTPSPOWERDMA DE S464112077237218 CARD 5623 | D45: Client | E45: -75 | F45: =IF(Table147[[#This Row],[Bank Acct]]=LEFT(Table147[[#Headers],[BA Balance]],2),SUMIF(Table147[[#Headers],[Bank Acct]]:Table147[[#This Row],[Bank Acct]],Table147[[#This Row],[Bank Acct]],Table147[[#Headers],[Amount]]:Table147[[#This Row],[Amount]]),"") ->  | G45: =IF(Table147[[#This Row],[Bank Acct]]=LEFT(Table147[[#Headers],[WF Balance]],2),SUMIF(Table147[[#Headers],[Bank Acct]]:Table147[[#This Row],[Bank Acct]],Table147[[#This Row],[Bank Acct]],Table147[[#Headers],[Amount]]:Table147[[#This Row],[Amount]]),"") -> 5250.98 | H45: =IFERROR(INDEX([1]Lookup!$B$2:$C$7,MATCH(RIGHT(TRIM(Table147[[#This Row],[Description]]),4),[1]Lookup!$B$2:$B$7,0),2),"") -> FWC | I45: Web Hosting | J45: Web Hosting | K45: 240420 - Peregrine - Mailchimp Essentials MC20709422.pdf
A46: WF | B46: 2024-04-23 | C46: ONLINE TRANSFER TO COLLIVER F REF #IB0MYHKYRB CHECKING INVOICE 2024.9006 | D46: Expense | E46: -1726.5 | F46: =IF(Table147[[#This Row],[Bank Acct]]=LEFT(Table147[[#Headers],[BA Balance]],2),SUMIF(Table147[[#Headers],[Bank Acct]]:Table147[[#This Row],[Bank Acct]],Table147[[#This Row],[Bank Acct]],Table147[[#Headers],[Amount]]:Table147[[#This Row],[Amount]]),"") ->  | G46: =IF(Table147[[#This Row],[Bank Acct]]=LEFT(Table147[[#Headers],[WF Balance]],2),SUMIF(Table147[[#Headers],[Bank Acct]]:Table147[[#This Row],[Bank Acct]],Table147[[#This Row],[Bank Acct]],Table147[[#Headers],[Amount]]:Table147[[#This Row],[Amount]]),"") -> 3524.48 | H46: =IFERROR(INDEX([1]Lookup!$B$2:$C$7,MATCH(RIGHT(TRIM(Table147[[#This Row],[Description]]),4),[1]Lookup!$B$2:$B$7,0),2),"") ->  | I46: AE | J46: Reimbursement
A47: WF | B47: 2024-04-25 | C47: RECURRING PAYMENT AUTHORIZED ON 04/24 FREEMIUS* MEDIA SY HTTPSFREEMIUS DE S464115578359525 CARD 5623 | D47: Expense | E47: -14.99 | F47: =IF(Table147[[#This Row],[Bank Acct]]=LEFT(Table147[[#Headers],[BA Balance]],2),SUMIF(Table147[[#Headers],[Bank Acct]]:Table147[[#This Row],[Bank Acct]],Table147[[#This Row],[Bank Acct]],Table147[[#Headers],[Amount]]:Table147[[#This Row],[Amount]]),"") ->  | G47: =IF(Table147[[#This Row],[Bank Acct]]=LEFT(Table147[[#Headers],[WF Balance]],2),SUMIF(Table147[[#Headers],[Bank Acct]]:Table147[[#This Row],[Bank Acct]],Table147[[#This Row],[Bank Acct]],Table147[[#Headers],[Amount]]:Table147[[#This Row],[Amount]]),"") -> 3509.49 | H47: =IFERROR(INDEX([1]Lookup!$B$2:$C$7,MATCH(RIGHT(TRIM(Table147[[#This Row],[Description]]),4),[1]Lookup!$B$2:$B$7,0),2),"") -> FWC | I47: Web Hosting | J47: Web Tools
A48: WF | B48: 2024-04-30 | C48: ONLINE TRANSFER TO COLLIVER F REF #IB0N2LRJGB CHECKING APRIL DISTRIBUTION | D48: Distribution | E48: -1000 | F48: =IF(Table147[[#This Row],[Bank Acct]]=LEFT(Table147[[#Headers],[BA Balance]],2),SUMIF(Table147[[#Headers],[Bank Acct]]:Table147[[#This Row],[Bank Acct]],Table147[[#This Row],[Bank Acct]],Table147[[#Headers],[Amount]]:Table147[[#This Row],[Amount]]),"") ->  | G48: =IF(Table147[[#This Row],[Bank Acct]]=LEFT(Table147[[#Headers],[WF Balance]],2),SUMIF(Table147[[#Headers],[Bank Acct]]:Table147[[#This Row],[Bank Acct]],Table147[[#This Row],[Bank Acct]],Table147[[#Headers],[Amount]]:Table147[[#This Row],[Amount]]),"") -> 2509.49 | H48: =IFERROR(INDEX([1]Lookup!$B$2:$C$7,MATCH(RIGHT(TRIM(Table147[[#This Row],[Description]]),4),[1]Lookup!$B$2:$B$7,0),2),"") ->  | I48: AE | J48: Distibution
A49: WF | B49: 2024-04-30 | C49: ONLINE TRANSFER TO LAKE MICHIGAN CREDIT UNION CHK XXXXXX1558 L. CARLSON REF #F20N2KPQWB APRIL 2024 DISTRIBUTION | D49: Distribution | E49: -1000 | F49: =IF(Table147[[#This Row],[Bank Acct]]=LEFT(Table147[[#Headers],[BA Balance]],2),SUMIF(Table147[[#Headers],[Bank Acct]]:Table147[[#This Row],[Bank Acct]],Table147[[#This Row],[Bank Acct]],Table147[[#Headers],[Amount]]:Table147[[#This Row],[Amount]]),"") ->  | G49: =IF(Table147[[#This Row],[Bank Acct]]=LEFT(Table147[[#Headers],[WF Balance]],2),SUMIF(Table147[[#Headers],[Bank Acct]]:Table147[[#This Row],[Bank Acct]],Table147[[#This Row],[Bank Acct]],Table147[[#Headers],[Amount]]:Table147[[#This Row],[Amount]]),"") -> 1509.49 | I49: AE | J49: Distibution
A50: BA | B50: 2024-05-01 | C50: Monthly Fee Business Adv Relationship | D50: Expense | E50: -29.95 | F50: =IF(Table147[[#This Row],[Bank Acct]]=LEFT(Table147[[#Headers],[BA Balance]],2),SUMIF(Table147[[#Headers],[Bank Acct]]:Table147[[#This Row],[Bank Acct]],Table147[[#This Row],[Bank Acct]],Table147[[#Headers],[Amount]]:Table147[[#This Row],[Amount]]),"") -> -191.81 | G50: =IF(Table147[[#This Row],[Bank Acct]]=LEFT(Table147[[#Headers],[WF Balance]],2),SUMIF(Table147[[#Headers],[Bank Acct]]:Table147[[#This Row],[Bank Acct]],Table147[[#This Row],[Bank Acct]],Table147[[#Headers],[Amount]]:Table147[[#This Row],[Amount]]),"") ->  | I50: AE | J50: Bank Charge
A51: WF | B51: 2024-05-07 | C51: ZELLE TO MICHAEL L. STUCK CPA PC ON 05/07 REF #PP0S7GDB3C FOR PROFESSIONAL SERVICES 2023 AVIAGLOBAL | D51: Expense | E51: -650 | F51: =IF(Table147[[#This Row],[Bank Acct]]=LEFT(Table147[[#Headers],[BA Balance]],2),SUMIF(Table147[[#Headers],[Bank Acct]]:Table147[[#This Row],[Bank Acct]],Table147[[#This Row],[Bank Acct]],Table147[[#Headers],[Amount]]:Table147[[#This Row],[Amount]]),"") ->  | G51: =IF(Table147[[#This Row],[Bank Acct]]=LEFT(Table147[[#Headers],[WF Balance]],2),SUMIF(Table147[[#Headers],[Bank Acct]]:Table147[[#This Row],[Bank Acct]],Table147[[#This Row],[Bank Acct]],Table147[[#Headers],[Amount]]:Table147[[#This Row],[Amount]]),"") -> 859.49 | I51: AE | J51: Taxes
A52: WF | B52: 2024-05-13 | C52: RECURRING PAYMENT AUTHORIZED ON 05/12 STK*Shutterstock 866-6633954 NY S584133273702119 CARD 2086 | D52: Expense | E52: -29 | F52: =IF(Table147[[#This Row],[Bank Acct]]=LEFT(Table147[[#Headers],[BA Balance]],2),SUMIF(Table147[[#Headers],[Bank Acct]]:Table147[[#This Row],[Bank Acct]],Table147[[#This Row],[Bank Acct]],Table147[[#Headers],[Amount]]:Table147[[#This Row],[Amount]]),"") ->  | G52: =IF(Table147[[#This Row],[Bank Acct]]=LEFT(Table147[[#Headers],[WF Balance]],2),SUMIF(Table147[[#Headers],[Bank Acct]]:Table147[[#This Row],[Bank Acct]],Table147[[#This Row],[Bank Acct]],Table147[[#Headers],[Amount]]:Table147[[#This Row],[Amount]]),"") -> 830.49 | I52: Web Hosting | J52: Images | K52: 240512 - Shutterstock CS-08870-4D3D.pdf
A53: WF | B53: 2024-05-20 | C53: RECURRING PAYMENT AUTHORIZED ON 05/18 Mailchimp 678-9990141 GA S384139370490022 CARD 2086 | D53: Expense | E53: -13.73 | F53: =IF(Table147[[#This Row],[Bank Acct]]=LEFT(Table147[[#Headers],[BA Balance]],2),SUMIF(Table147[[#Headers],[Bank Acct]]:Table147[[#This Row],[Bank Acct]],Table147[[#This Row],[Bank Acct]],Table147[[#Headers],[Amount]]:Table147[[#This Row],[Amount]]),"") ->  | G53: =IF(Table147[[#This Row],[Bank Acct]]=LEFT(Table147[[#Headers],[WF Balance]],2),SUMIF(Table147[[#Headers],[Bank Acct]]:Table147[[#This Row],[Bank Acct]],Table147[[#This Row],[Bank Acct]],Table147[[#Headers],[Amount]]:Table147[[#This Row],[Amount]]),"") -> 816.76 | H53: =IFERROR(INDEX([1]Lookup!$B$2:$C$7,MATCH(RIGHT(TRIM(Table147[[#This Row],[Description]]),4),[1]Lookup!$B$2:$B$7,0),2),"") -> LRC | I53: AE | J53: Mailchimp | K53: 240518 - AE - Mailchimp Essentials MC20897189.pdf
A54: WF | B54: 2024-05-21 | C54: RECURRING PAYMENT AUTHORIZED ON 05/20 Mailchimp 678-9990141 GA S304141391436612 CARD 2086 | D54: Client | E54: -75 | F54: =IF(Table147[[#This Row],[Bank Acct]]=LEFT(Table147[[#Headers],[BA Balance]],2),SUMIF(Table147[[#Headers],[Bank Acct]]:Table147[[#This Row],[Bank Acct]],Table147[[#This Row],[Bank Acct]],Table147[[#Headers],[Amount]]:Table147[[#This Row],[Amount]]),"") ->  | G54: =IF(Table147[[#This Row],[Bank Acct]]=LEFT(Table147[[#Headers],[WF Balance]],2),SUMIF(Table147[[#Headers],[Bank Acct]]:Table147[[#This Row],[Bank Acct]],Table147[[#This Row],[Bank Acct]],Table147[[#Headers],[Amount]]:Table147[[#This Row],[Amount]]),"") -> 741.76 | H54: =IFERROR(INDEX([1]Lookup!$B$2:$C$7,MATCH(RIGHT(TRIM(Table147[[#This Row],[Description]]),4),[1]Lookup!$B$2:$B$7,0),2),"") -> LRC | I54: Peregrine | J54: Mailchimp | K54: 240520 - Peregrine - Mailchimp Essentials MC20910213.pdf
A55: WF | B55: 2024-05-21 | C55: RECURRING PAYMENT AUTHORIZED ON 05/20 POWERDMARC HTTPSPOWERDMA DE S584142090448237 CARD 5623 | D55: Expense | E55: -45 | F55: =IF(Table147[[#This Row],[Bank Acct]]=LEFT(Table147[[#Headers],[BA Balance]],2),SUMIF(Table147[[#Headers],[Bank Acct]]:Table147[[#This Row],[Bank Acct]],Table147[[#This Row],[Bank Acct]],Table147[[#Headers],[Amount]]:Table147[[#This Row],[Amount]]),"") ->  | G55: =IF(Table147[[#This Row],[Bank Acct]]=LEFT(Table147[[#Headers],[WF Balance]],2),SUMIF(Table147[[#Headers],[Bank Acct]]:Table147[[#This Row],[Bank Acct]],Table147[[#This Row],[Bank Acct]],Table147[[#Headers],[Amount]]:Table147[[#This Row],[Amount]]),"") -> 696.76 | I55: Web Hosting | J55: Web Hosting
A56: WF | B56: 2024-05-28 | C56: RECURRING PAYMENT AUTHORIZED ON 05/24 FREEMIUS* MEDIA SY HTTPSFREEMIUS DE S304145577987076 CARD 5623 | D56: Expense | E56: -14.99 | F56: =IF(Table147[[#This Row],[Bank Acct]]=LEFT(Table147[[#Headers],[BA Balance]],2),SUMIF(Table147[[#Headers],[Bank Acct]]:Table147[[#This Row],[Bank Acct]],Table147[[#This Row],[Bank Acct]],Table147[[#Headers],[Amount]]:Table147[[#This Row],[Amount]]),"") ->  | G56: =IF(Table147[[#This Row],[Bank Acct]]=LEFT(Table147[[#Headers],[WF Balance]],2),SUMIF(Table147[[#Headers],[Bank Acct]]:Table147[[#This Row],[Bank Acct]],Table147[[#This Row],[Bank Acct]],Table147[[#Headers],[Amount]]:Table147[[#This Row],[Amount]]),"") -> 681.77 | I56: Web Hosting | J56: Web Tools
A57: WF | B57: 2024-05-29 | C57: RECURRING PAYMENT AUTHORIZED ON 05/28 COMPLIANZ B.V. GRONINGEN NLD S584149571201644 CARD 5623 | D57: Expense | E57: -359 | F57: =IF(Table147[[#This Row],[Bank Acct]]=LEFT(Table147[[#Headers],[BA Balance]],2),SUMIF(Table147[[#Headers],[Bank Acct]]:Table147[[#This Row],[Bank Acct]],Table147[[#This Row],[Bank Acct]],Table147[[#Headers],[Amount]]:Table147[[#This Row],[Amount]]),"") ->  | G57: =IF(Table147[[#This Row],[Bank Acct]]=LEFT(Table147[[#Headers],[WF Balance]],2),SUMIF(Table147[[#Headers],[Bank Acct]]:Table147[[#This Row],[Bank Acct]],Table147[[#This Row],[Bank Acct]],Table147[[#Headers],[Amount]]:Table147[[#This Row],[Amount]]),"") -> 322.77 | I57: Web Hosting | J57: Web Tools
A58: BA | B58: 2024-06-03 | C58: Monthly Fee Business Adv Relationship | D58: Expense | E58: -29.95 | F58: =IF(Table147[[#This Row],[Bank Acct]]=LEFT(Table147[[#Headers],[BA Balance]],2),SUMIF(Table147[[#Headers],[Bank Acct]]:Table147[[#This Row],[Bank Acct]],Table147[[#This Row],[Bank Acct]],Table147[[#Headers],[Amount]]:Table147[[#This Row],[Amount]]),"") -> -221.76 | G58: =IF(Table147[[#This Row],[Bank Acct]]=LEFT(Table147[[#Headers],[WF Balance]],2),SUMIF(Table147[[#Headers],[Bank Acct]]:Table147[[#This Row],[Bank Acct]],Table147[[#This Row],[Bank Acct]],Table147[[#Headers],[Amount]]:Table147[[#This Row],[Amount]]),"") ->  | I58: AE | J58: Bank Charge
A59: WF | B59: 2024-06-03 | C59: PEREGRINE AVIONI QUICKBOOKS 240603 XXXXX3858 AEROSPACE EDGE, LLC | D59: Income | E59: 2098.2 | F59: =IF(Table147[[#This Row],[Bank Acct]]=LEFT(Table147[[#Headers],[BA Balance]],2),SUMIF(Table147[[#Headers],[Bank Acct]]:Table147[[#This Row],[Bank Acct]],Table147[[#This Row],[Bank Acct]],Table147[[#Headers],[Amount]]:Table147[[#This Row],[Amount]]),"") ->  | G59: =IF(Table147[[#This Row],[Bank Acct]]=LEFT(Table147[[#Headers],[WF Balance]],2),SUMIF(Table147[[#Headers],[Bank Acct]]:Table147[[#This Row],[Bank Acct]],Table147[[#This Row],[Bank Acct]],Table147[[#Headers],[Amount]]:Table147[[#This Row],[Amount]]),"") -> 2420.97 | I59: Peregrine | J59: Pmt
A60: WF | B60: 2024-06-06 | C60: RECURRING PAYMENT AUTHORIZED ON 06/05 ELEMENTOR HTTPSELEMENTO DE S584157597393645 CARD 5623 | D60: Expense | E60: -238.8 | F60: =IF(Table147[[#This Row],[Bank Acct]]=LEFT(Table147[[#Headers],[BA Balance]],2),SUMIF(Table147[[#Headers],[Bank Acct]]:Table147[[#This Row],[Bank Acct]],Table147[[#This Row],[Bank Acct]],Table147[[#Headers],[Amount]]:Table147[[#This Row],[Amount]]),"") ->  | G60: =IF(Table147[[#This Row],[Bank Acct]]=LEFT(Table147[[#Headers],[WF Balance]],2),SUMIF(Table147[[#Headers],[Bank Acct]]:Table147[[#This Row],[Bank Acct]],Table147[[#This Row],[Bank Acct]],Table147[[#Headers],[Amount]]:Table147[[#This Row],[Amount]]),"") -> 2182.17 | I60: Web Hosting | J60: Web Tools
A61: WF | B61: 2024-06-13 | C61: RECURRING PAYMENT AUTHORIZED ON 06/12 STK*Shutterstock 866-6633954 NY S304164273606856 CARD 2086 | D61: Expense | E61: -29 | F61: =IF(Table147[[#This Row],[Bank Acct]]=LEFT(Table147[[#Headers],[BA Balance]],2),SUMIF(Table147[[#Headers],[Bank Acct]]:Table147[[#This Row],[Bank Acct]],Table147[[#This Row],[Bank Acct]],Table147[[#Headers],[Amount]]:Table147[[#This Row],[Amount]]),"") ->  | G61: =IF(Table147[[#This Row],[Bank Acct]]=LEFT(Table147[[#Headers],[WF Balance]],2),SUMIF(Table147[[#Headers],[Bank Acct]]:Table147[[#This Row],[Bank Acct]],Table147[[#This Row],[Bank Acct]],Table147[[#Headers],[Amount]]:Table147[[#This Row],[Amount]]),"") -> 2153.17 | I61: Web Hosting | J61: Images | K61: 240612 - Shutterstock CS-0C0DD-0265.pdf
A62: WF | B62: 2024-06-20 | C62: RECURRING PAYMENT AUTHORIZED ON 06/18 Mailchimp 678-9990141 GA S304170349240906 CARD 2086 | D62: Expense | E62: -13.73 | F62: =IF(Table147[[#This Row],[Bank Acct]]=LEFT(Table147[[#Headers],[BA Balance]],2),SUMIF(Table147[[#Headers],[Bank Acct]]:Table147[[#This Row],[Bank Acct]],Table147[[#This Row],[Bank Acct]],Table147[[#Headers],[Amount]]:Table147[[#This Row],[Amount]]),"") ->  | G62: =IF(Table147[[#This Row],[Bank Acct]]=LEFT(Table147[[#Headers],[WF Balance]],2),SUMIF(Table147[[#Headers],[Bank Acct]]:Table147[[#This Row],[Bank Acct]],Table147[[#This Row],[Bank Acct]],Table147[[#Headers],[Amount]]:Table147[[#This Row],[Amount]]),"") -> 2139.44 | H62: =IFERROR(INDEX([1]Lookup!$B$2:$C$7,MATCH(RIGHT(TRIM(Table147[[#This Row],[Description]]),4),[1]Lookup!$B$2:$B$7,0),2),"") -> LRC | I62: AE | J62: Mailchimp | K62: 240618 - AE - Mailchimp Essentials MC21099378.pdf
A63: WF | B63: 2024-06-21 | C63: RECURRING PAYMENT AUTHORIZED ON 06/20 Mailchimp 678-9990141 GA S304172396977484 CARD 2086 | D63: Client | E63: -75 | F63: =IF(Table147[[#This Row],[Bank Acct]]=LEFT(Table147[[#Headers],[BA Balance]],2),SUMIF(Table147[[#Headers],[Bank Acct]]:Table147[[#This Row],[Bank Acct]],Table147[[#This Row],[Bank Acct]],Table147[[#Headers],[Amount]]:Table147[[#This Row],[Amount]]),"") ->  | G63: =IF(Table147[[#This Row],[Bank Acct]]=LEFT(Table147[[#Headers],[WF Balance]],2),SUMIF(Table147[[#Headers],[Bank Acct]]:Table147[[#This Row],[Bank Acct]],Table147[[#This Row],[Bank Acct]],Table147[[#Headers],[Amount]]:Table147[[#This Row],[Amount]]),"") -> 2064.44 | H63: =IFERROR(INDEX([1]Lookup!$B$2:$C$7,MATCH(RIGHT(TRIM(Table147[[#This Row],[Description]]),4),[1]Lookup!$B$2:$B$7,0),2),"") -> LRC | I63: Peregrine | J63: Mailchimp | K63: 240620 - Peregrine - Mailchimp Essentials MC21115926.pdf
A64: WF | B64: 2024-06-21 | C64: RECURRING PAYMENT AUTHORIZED ON 06/20 POWERDMARC HTTPSPOWERDMA DE S304173084026828 CARD 5623 | D64: Expense | E64: -45 | F64: =IF(Table147[[#This Row],[Bank Acct]]=LEFT(Table147[[#Headers],[BA Balance]],2),SUMIF(Table147[[#Headers],[Bank Acct]]:Table147[[#This Row],[Bank Acct]],Table147[[#This Row],[Bank Acct]],Table147[[#Headers],[Amount]]:Table147[[#This Row],[Amount]]),"") ->  | G64: =IF(Table147[[#This Row],[Bank Acct]]=LEFT(Table147[[#Headers],[WF Balance]],2),SUMIF(Table147[[#Headers],[Bank Acct]]:Table147[[#This Row],[Bank Acct]],Table147[[#This Row],[Bank Acct]],Table147[[#Headers],[Amount]]:Table147[[#This Row],[Amount]]),"") -> 2019.44 | I64: Web Hosting | J64: Web Hosting
A65: WF | B65: 2024-06-25 | C65: RECURRING PAYMENT AUTHORIZED ON 06/24 FREEMIUS* MEDIA SY HTTPSFREEMIUS DE S384176577756341 CARD 5623 | D65: Expense | E65: -14.99 | F65: =IF(Table147[[#This Row],[Bank Acct]]=LEFT(Table147[[#Headers],[BA Balance]],2),SUMIF(Table147[[#Headers],[Bank Acct]]:Table147[[#This Row],[Bank Acct]],Table147[[#This Row],[Bank Acct]],Table147[[#Headers],[Amount]]:Table147[[#This Row],[Amount]]),"") ->  | G65: =IF(Table147[[#This Row],[Bank Acct]]=LEFT(Table147[[#Headers],[WF Balance]],2),SUMIF(Table147[[#Headers],[Bank Acct]]:Table147[[#This Row],[Bank Acct]],Table147[[#This Row],[Bank Acct]],Table147[[#Headers],[Amount]]:Table147[[#This Row],[Amount]]),"") -> 2004.45 | I65: Web Hosting | J65: Web Hosting
A66: BA | B66: 2024-07-01 | C66: Monthly Fee Business Adv Relationship | D66: Expense | E66: -29.95 | F66: =IF(Table147[[#This Row],[Bank Acct]]=LEFT(Table147[[#Headers],[BA Balance]],2),SUMIF(Table147[[#Headers],[Bank Acct]]:Table147[[#This Row],[Bank Acct]],Table147[[#This Row],[Bank Acct]],Table147[[#Headers],[Amount]]:Table147[[#This Row],[Amount]]),"") -> -251.71 | G66: =IF(Table147[[#This Row],[Bank Acct]]=LEFT(Table147[[#Headers],[WF Balance]],2),SUMIF(Table147[[#Headers],[Bank Acct]]:Table147[[#This Row],[Bank Acct]],Table147[[#This Row],[Bank Acct]],Table147[[#Headers],[Amount]]:Table147[[#This Row],[Amount]]),"") ->  | I66: AE | J66: Bank Charge
A67: WF | B67: 2024-07-01 | C67: WT 2024070100567414 LLOYDS BANK PLC /ORG=COUNTERPOINT MARKET INTELLIGENCE L SRF# 2024070100567414 TRN#240701045757 RFB# | D67: Income | E67: 615.65 | F67: =IF(Table147[[#This Row],[Bank Acct]]=LEFT(Table147[[#Headers],[BA Balance]],2),SUMIF(Table147[[#Headers],[Bank Acct]]:Table147[[#This Row],[Bank Acct]],Table147[[#This Row],[Bank Acct]],Table147[[#Headers],[Amount]]:Table147[[#This Row],[Amount]]),"") ->  | G67: =IF(Table147[[#This Row],[Bank Acct]]=LEFT(Table147[[#Headers],[WF Balance]],2),SUMIF(Table147[[#Headers],[Bank Acct]]:Table147[[#This Row],[Bank Acct]],Table147[[#This Row],[Bank Acct]],Table147[[#Headers],[Amount]]:Table147[[#This Row],[Amount]]),"") -> 2620.1 | I67: Counterpoint | J67: Pmt
A68: WF | B68: 2024-07-02 | C68: WT 2024070200547536 LLOYDS BANK PLC /ORG=COUNTERPOINT MARKET INTELLIGENCE L SRF# 2024070200547536 TRN#240702008557 RFB# | D68: Income | E68: 2463.4 | F68: =IF(Table147[[#This Row],[Bank Acct]]=LEFT(Table147[[#Headers],[BA Balance]],2),SUMIF(Table147[[#Headers],[Bank Acct]]:Table147[[#This Row],[Bank Acct]],Table147[[#This Row],[Bank Acct]],Table147[[#Headers],[Amount]]:Table147[[#This Row],[Amount]]),"") ->  | G68: =IF(Table147[[#This Row],[Bank Acct]]=LEFT(Table147[[#Headers],[WF Balance]],2),SUMIF(Table147[[#Headers],[Bank Acct]]:Table147[[#This Row],[Bank Acct]],Table147[[#This Row],[Bank Acct]],Table147[[#Headers],[Amount]]:Table147[[#This Row],[Amount]]),"") -> 5083.5 | I68: Counterpoint | J68: Pmt
A69: WF | B69: 2024-07-12 | C69: MOBILE DEPOSIT : REF NUMBER :912120073258 | D69: Income | E69: 2075 | F69: =IF(Table147[[#This Row],[Bank Acct]]=LEFT(Table147[[#Headers],[BA Balance]],2),SUMIF(Table147[[#Headers],[Bank Acct]]:Table147[[#This Row],[Bank Acct]],Table147[[#This Row],[Bank Acct]],Table147[[#Headers],[Amount]]:Table147[[#This Row],[Amount]]),"") ->  | G69: =IF(Table147[[#This Row],[Bank Acct]]=LEFT(Table147[[#Headers],[WF Balance]],2),SUMIF(Table147[[#Headers],[Bank Acct]]:Table147[[#This Row],[Bank Acct]],Table147[[#This Row],[Bank Acct]],Table147[[#Headers],[Amount]]:Table147[[#This Row],[Amount]]),"") -> 7158.5 | I69: Peregrine | J69: Pmt
A70: WF | B70: 2024-07-12 | C70: MOBILE DEPOSIT : REF NUMBER :912120073258 | D70: Income | E70: 2075 | F70: =IF(Table147[[#This Row],[Bank Acct]]=LEFT(Table147[[#Headers],[BA Balance]],2),SUMIF(Table147[[#Headers],[Bank Acct]]:Table147[[#This Row],[Bank Acct]],Table147[[#This Row],[Bank Acct]],Table147[[#Headers],[Amount]]:Table147[[#This Row],[Amount]]),"") ->  | G70: =IF(Table147[[#This Row],[Bank Acct]]=LEFT(Table147[[#Headers],[WF Balance]],2),SUMIF(Table147[[#Headers],[Bank Acct]]:Table147[[#This Row],[Bank Acct]],Table147[[#This Row],[Bank Acct]],Table147[[#Headers],[Amount]]:Table147[[#This Row],[Amount]]),"") -> 9233.5 | I70: Peregrine | J70: Pmt
A71: WF | B71: 2024-07-15 | C71: RECURRING PAYMENT AUTHORIZED ON 07/12 STK*Shutterstock 866-6633954 NY S464194273627728 CARD 2086 | D71: Expense | E71: -29 | F71: =IF(Table147[[#This Row],[Bank Acct]]=LEFT(Table147[[#Headers],[BA Balance]],2),SUMIF(Table147[[#Headers],[Bank Acct]]:Table147[[#This Row],[Bank Acct]],Table147[[#This Row],[Bank Acct]],Table147[[#Headers],[Amount]]:Table147[[#This Row],[Amount]]),"") ->  | G71: =IF(Table147[[#This Row],[Bank Acct]]=LEFT(Table147[[#Headers],[WF Balance]],2),SUMIF(Table147[[#Headers],[Bank Acct]]:Table147[[#This Row],[Bank Acct]],Table147[[#This Row],[Bank Acct]],Table147[[#Headers],[Amount]]:Table147[[#This Row],[Amount]]),"") -> 9204.5 | I71: Web Hosting | J71: Images | K71: 240712 - Shutterstock CS-0BBA6-2F55.pdf
A72: WF | B72: 2024-07-19 | C72: RECURRING PAYMENT AUTHORIZED ON 07/18 Mailchimp 678-9990141 GA S464200383987845 CARD 2086 | D72: Expense | E72: -13.73 | F72: =IF(Table147[[#This Row],[Bank Acct]]=LEFT(Table147[[#Headers],[BA Balance]],2),SUMIF(Table147[[#Headers],[Bank Acct]]:Table147[[#This Row],[Bank Acct]],Table147[[#This Row],[Bank Acct]],Table147[[#Headers],[Amount]]:Table147[[#This Row],[Amount]]),"") ->  | G72: =IF(Table147[[#This Row],[Bank Acct]]=LEFT(Table147[[#Headers],[WF Balance]],2),SUMIF(Table147[[#Headers],[Bank Acct]]:Table147[[#This Row],[Bank Acct]],Table147[[#This Row],[Bank Acct]],Table147[[#Headers],[Amount]]:Table147[[#This Row],[Amount]]),"") -> 9190.77 | H72: =IFERROR(INDEX([1]Lookup!$B$2:$C$7,MATCH(RIGHT(TRIM(Table147[[#This Row],[Description]]),4),[1]Lookup!$B$2:$B$7,0),2),"") -> LRC | I72: AE | J72: Mailchimp | K72: 240718 - AE - Mailchimp Essentials MC21299686.pdf
A73: WF | B73: 2024-07-22 | C73: CHECK # 3002 | D73: Expense | E73: -5000 | F73: =IF(Table147[[#This Row],[Bank Acct]]=LEFT(Table147[[#Headers],[BA Balance]],2),SUMIF(Table147[[#Headers],[Bank Acct]]:Table147[[#This Row],[Bank Acct]],Table147[[#This Row],[Bank Acct]],Table147[[#Headers],[Amount]]:Table147[[#This Row],[Amount]]),"") ->  | G73: =IF(Table147[[#This Row],[Bank Acct]]=LEFT(Table147[[#Headers],[WF Balance]],2),SUMIF(Table147[[#Headers],[Bank Acct]]:Table147[[#This Row],[Bank Acct]],Table147[[#This Row],[Bank Acct]],Table147[[#Headers],[Amount]]:Table147[[#This Row],[Amount]]),"") -> 4190.77 | I73: AE | J73: AWIN
A74: WF | B74: 2024-07-22 | C74: RECURRING PAYMENT AUTHORIZED ON 07/20 Mailchimp 678-9990141 GA S464202391077140 CARD 2086 | D74: Client | E74: -75 | F74: =IF(Table147[[#This Row],[Bank Acct]]=LEFT(Table147[[#Headers],[BA Balance]],2),SUMIF(Table147[[#Headers],[Bank Acct]]:Table147[[#This Row],[Bank Acct]],Table147[[#This Row],[Bank Acct]],Table147[[#Headers],[Amount]]:Table147[[#This Row],[Amount]]),"") ->  | G74: =IF(Table147[[#This Row],[Bank Acct]]=LEFT(Table147[[#Headers],[WF Balance]],2),SUMIF(Table147[[#Headers],[Bank Acct]]:Table147[[#This Row],[Bank Acct]],Table147[[#This Row],[Bank Acct]],Table147[[#Headers],[Amount]]:Table147[[#This Row],[Amount]]),"") -> 4115.77 | H74: =IFERROR(INDEX([1]Lookup!$B$2:$C$7,MATCH(RIGHT(TRIM(Table147[[#This Row],[Description]]),4),[1]Lookup!$B$2:$B$7,0),2),"") -> LRC | I74: Peregrine | J74: Mailchimp | K74: 240720 - Peregrine - Mailchimp Essentials MC21313542.pdf
A75: WF | B75: 2024-07-22 | C75: RECURRING PAYMENT AUTHORIZED ON 07/20 POWERDMARC HTTPSPOWERDMA DE S304203078857224 CARD 5623 | D75: Expense | E75: -45 | F75: =IF(Table147[[#This Row],[Bank Acct]]=LEFT(Table147[[#Headers],[BA Balance]],2),SUMIF(Table147[[#Headers],[Bank Acct]]:Table147[[#This Row],[Bank Acct]],Table147[[#This Row],[Bank Acct]],Table147[[#Headers],[Amount]]:Table147[[#This Row],[Amount]]),"") ->  | G75: =IF(Table147[[#This Row],[Bank Acct]]=LEFT(Table147[[#Headers],[WF Balance]],2),SUMIF(Table147[[#Headers],[Bank Acct]]:Table147[[#This Row],[Bank Acct]],Table147[[#This Row],[Bank Acct]],Table147[[#Headers],[Amount]]:Table147[[#This Row],[Amount]]),"") -> 4070.77 | I75: Web Hosting | J75: Web Hosting
A76: WF | B76: 2024-07-25 | C76: RECURRING PAYMENT AUTHORIZED ON 07/24 FREEMIUS* MEDIA SY HTTPSFREEMIUS DE S584206579530736 CARD 5623 | D76: Expense | E76: -14.99 | F76: =IF(Table147[[#This Row],[Bank Acct]]=LEFT(Table147[[#Headers],[BA Balance]],2),SUMIF(Table147[[#Headers],[Bank Acct]]:Table147[[#This Row],[Bank Acct]],Table147[[#This Row],[Bank Acct]],Table147[[#Headers],[Amount]]:Table147[[#This Row],[Amount]]),"") ->  | G76: =IF(Table147[[#This Row],[Bank Acct]]=LEFT(Table147[[#Headers],[WF Balance]],2),SUMIF(Table147[[#Headers],[Bank Acct]]:Table147[[#This Row],[Bank Acct]],Table147[[#This Row],[Bank Acct]],Table147[[#Headers],[Amount]]:Table147[[#This Row],[Amount]]),"") -> 4055.78 | I76: Web Hosting | J76: Web Hosting
A77: BA | B77: 2024-08-01 | C77: Monthly Fee Business Adv Relationship | D77: Expense | E77: -29.95 | F77: =IF(Table147[[#This Row],[Bank Acct]]=LEFT(Table147[[#Headers],[BA Balance]],2),SUMIF(Table147[[#Headers],[Bank Acct]]:Table147[[#This Row],[Bank Acct]],Table147[[#This Row],[Bank Acct]],Table147[[#Headers],[Amount]]:Table147[[#This Row],[Amount]]),"") -> -281.66 | G77: =IF(Table147[[#This Row],[Bank Acct]]=LEFT(Table147[[#Headers],[WF Balance]],2),SUMIF(Table147[[#Headers],[Bank Acct]]:Table147[[#This Row],[Bank Acct]],Table147[[#This Row],[Bank Acct]],Table147[[#Headers],[Amount]]:Table147[[#This Row],[Amount]]),"") ->  | I77: AE | J77: Bank Charge
A78: WF | B78: 2024-08-13 | C78: RECURRING PAYMENT AUTHORIZED ON 08/12 STK*Shutterstock 866-6633954 NY S384225273801311 CARD 2086 | D78: Expense | E78: -29 | F78: =IF(Table147[[#This Row],[Bank Acct]]=LEFT(Table147[[#Headers],[BA Balance]],2),SUMIF(Table147[[#Headers],[Bank Acct]]:Table147[[#This Row],[Bank Acct]],Table147[[#This Row],[Bank Acct]],Table147[[#Headers],[Amount]]:Table147[[#This Row],[Amount]]),"") ->  | G78: =IF(Table147[[#This Row],[Bank Acct]]=LEFT(Table147[[#Headers],[WF Balance]],2),SUMIF(Table147[[#Headers],[Bank Acct]]:Table147[[#This Row],[Bank Acct]],Table147[[#This Row],[Bank Acct]],Table147[[#Headers],[Amount]]:Table147[[#This Row],[Amount]]),"") -> 4026.78 | I78: Web Hosting | J78: Images | K78: 240812 - Shutterstock CS-06DA2-DCDE.pdf
A79: WF | B79: 2024-08-19 | C79: RECURRING PAYMENT AUTHORIZED ON 08/18 Mailchimp 678-9990141 GA S584231349677750 CARD 2086 | D79: Expense | E79: -13.73 | F79: =IF(Table147[[#This Row],[Bank Acct]]=LEFT(Table147[[#Headers],[BA Balance]],2),SUMIF(Table147[[#Headers],[Bank Acct]]:Table147[[#This Row],[Bank Acct]],Table147[[#This Row],[Bank Acct]],Table147[[#Headers],[Amount]]:Table147[[#This Row],[Amount]]),"") ->  | G79: =IF(Table147[[#This Row],[Bank Acct]]=LEFT(Table147[[#Headers],[WF Balance]],2),SUMIF(Table147[[#Headers],[Bank Acct]]:Table147[[#This Row],[Bank Acct]],Table147[[#This Row],[Bank Acct]],Table147[[#Headers],[Amount]]:Table147[[#This Row],[Amount]]),"") -> 4013.05 | H79: =IFERROR(INDEX([1]Lookup!$B$2:$C$7,MATCH(RIGHT(TRIM(Table147[[#This Row],[Description]]),4),[1]Lookup!$B$2:$B$7,0),2),"") -> LRC | I79: AE | J79: Mailchimp | K79: 240818 - AE - Mailchimp Essentials MC21493338.pdf
A80: WF | B80: 2024-08-21 | C80: RECURRING PAYMENT AUTHORIZED ON 08/20 Mailchimp 678-9990141 GA S584233355345225 CARD 2086 | D80: Client | E80: -75 | F80: =IF(Table147[[#This Row],[Bank Acct]]=LEFT(Table147[[#Headers],[BA Balance]],2),SUMIF(Table147[[#Headers],[Bank Acct]]:Table147[[#This Row],[Bank Acct]],Table147[[#This Row],[Bank Acct]],Table147[[#Headers],[Amount]]:Table147[[#This Row],[Amount]]),"") ->  | G80: =IF(Table147[[#This Row],[Bank Acct]]=LEFT(Table147[[#Headers],[WF Balance]],2),SUMIF(Table147[[#Headers],[Bank Acct]]:Table147[[#This Row],[Bank Acct]],Table147[[#This Row],[Bank Acct]],Table147[[#Headers],[Amount]]:Table147[[#This Row],[Amount]]),"") -> 3938.05 | H80: =IFERROR(INDEX([1]Lookup!$B$2:$C$7,MATCH(RIGHT(TRIM(Table147[[#This Row],[Description]]),4),[1]Lookup!$B$2:$B$7,0),2),"") -> LRC | I80: Peregrine | J80: Mailchimp | K80: 240820 - Peregrine - Mailchimp Essentials MC21506366.pdf
A81: WF | B81: 2024-08-21 | C81: RECURRING PAYMENT AUTHORIZED ON 08/20 POWERDMARC HTTPSPOWERDMA DE S584234078660601 CARD 5623 | D81: Expense | E81: -45 | F81: =IF(Table147[[#This Row],[Bank Acct]]=LEFT(Table147[[#Headers],[BA Balance]],2),SUMIF(Table147[[#Headers],[Bank Acct]]:Table147[[#This Row],[Bank Acct]],Table147[[#This Row],[Bank Acct]],Table147[[#Headers],[Amount]]:Table147[[#This Row],[Amount]]),"") ->  | G81: =IF(Table147[[#This Row],[Bank Acct]]=LEFT(Table147[[#Headers],[WF Balance]],2),SUMIF(Table147[[#Headers],[Bank Acct]]:Table147[[#This Row],[Bank Acct]],Table147[[#This Row],[Bank Acct]],Table147[[#Headers],[Amount]]:Table147[[#This Row],[Amount]]),"") -> 3893.05 | I81: Web Hosting | J81: Web Hosting
A82: BA | B82: 2024-09-03 | C82: Monthly Fee Business Adv Relationship | D82: Expense | E82: -29.95 | F82: =IF(Table147[[#This Row],[Bank Acct]]=LEFT(Table147[[#Headers],[BA Balance]],2),SUMIF(Table147[[#Headers],[Bank Acct]]:Table147[[#This Row],[Bank Acct]],Table147[[#This Row],[Bank Acct]],Table147[[#Headers],[Amount]]:Table147[[#This Row],[Amount]]),"") -> -311.61 | G82: =IF(Table147[[#This Row],[Bank Acct]]=LEFT(Table147[[#Headers],[WF Balance]],2),SUMIF(Table147[[#Headers],[Bank Acct]]:Table147[[#This Row],[Bank Acct]],Table147[[#This Row],[Bank Acct]],Table147[[#Headers],[Amount]]:Table147[[#This Row],[Amount]]),"") ->  | I82: AE | J82: Bank Charge
A83: WF | B83: 2024-09-12 | C83: WIRE TRANS SVC CHARGE - SEQUENCE: 240912079660 SRF# 2024091200011330 TRN#240912079660 RFB# 82040439 | D83: Expense | E83: -15 | F83: =IF(Table147[[#This Row],[Bank Acct]]=LEFT(Table147[[#Headers],[BA Balance]],2),SUMIF(Table147[[#Headers],[Bank Acct]]:Table147[[#This Row],[Bank Acct]],Table147[[#This Row],[Bank Acct]],Table147[[#Headers],[Amount]]:Table147[[#This Row],[Amount]]),"") ->  | G83: =IF(Table147[[#This Row],[Bank Acct]]=LEFT(Table147[[#Headers],[WF Balance]],2),SUMIF(Table147[[#Headers],[Bank Acct]]:Table147[[#This Row],[Bank Acct]],Table147[[#This Row],[Bank Acct]],Table147[[#Headers],[Amount]]:Table147[[#This Row],[Amount]]),"") -> 3878.05 | I83: AE | J83: Bank Charge
A84: WF | B84: 2024-09-12 | C84: WT FED#02419 TRUIST BANK /ORG=METREA HOLDINGS 1 LLC SRF# 2024091200011330 TRN#240912079660 RFB# 82040439 | D84: Income | E84: 2075 | F84: =IF(Table147[[#This Row],[Bank Acct]]=LEFT(Table147[[#Headers],[BA Balance]],2),SUMIF(Table147[[#Headers],[Bank Acct]]:Table147[[#This Row],[Bank Acct]],Table147[[#This Row],[Bank Acct]],Table147[[#Headers],[Amount]]:Table147[[#This Row],[Amount]]),"") ->  | G84: =IF(Table147[[#This Row],[Bank Acct]]=LEFT(Table147[[#Headers],[WF Balance]],2),SUMIF(Table147[[#Headers],[Bank Acct]]:Table147[[#This Row],[Bank Acct]],Table147[[#This Row],[Bank Acct]],Table147[[#Headers],[Amount]]:Table147[[#This Row],[Amount]]),"") -> 5953.05 | I84: Peregrine | J84: Pmt
A85: WF | B85: 2024-09-13 | C85: RECURRING PAYMENT AUTHORIZED ON 09/12 STK*Shutterstock 866-6633954 NY S464256273583251 CARD 2086 | D85: Expense | E85: -29 | F85: =IF(Table147[[#This Row],[Bank Acct]]=LEFT(Table147[[#Headers],[BA Balance]],2),SUMIF(Table147[[#Headers],[Bank Acct]]:Table147[[#This Row],[Bank Acct]],Table147[[#This Row],[Bank Acct]],Table147[[#Headers],[Amount]]:Table147[[#This Row],[Amount]]),"") ->  | G85: =IF(Table147[[#This Row],[Bank Acct]]=LEFT(Table147[[#Headers],[WF Balance]],2),SUMIF(Table147[[#Headers],[Bank Acct]]:Table147[[#This Row],[Bank Acct]],Table147[[#This Row],[Bank Acct]],Table147[[#Headers],[Amount]]:Table147[[#This Row],[Amount]]),"") -> 5924.05 | I85: Web Hosting | J85: Images | K85: 240912 - Shutterstock CS-0B91A-1362.pdf
A86: WF | B86: 2024-09-13 | C86: WIRE TRANS SVC CHARGE - SEQUENCE: 240913071936 SRF# 2024091300012572 TRN#240913071936 RFB# 82043318 | D86: Expense | E86: -15 | F86: =IF(Table147[[#This Row],[Bank Acct]]=LEFT(Table147[[#Headers],[BA Balance]],2),SUMIF(Table147[[#Headers],[Bank Acct]]:Table147[[#This Row],[Bank Acct]],Table147[[#This Row],[Bank Acct]],Table147[[#Headers],[Amount]]:Table147[[#This Row],[Amount]]),"") ->  | G86: =IF(Table147[[#This Row],[Bank Acct]]=LEFT(Table147[[#Headers],[WF Balance]],2),SUMIF(Table147[[#Headers],[Bank Acct]]:Table147[[#This Row],[Bank Acct]],Table147[[#This Row],[Bank Acct]],Table147[[#Headers],[Amount]]:Table147[[#This Row],[Amount]]),"") -> 5909.05 | I86: AE | J86: Bank Charge
A87: WF | B87: 2024-09-13 | C87: WT FED#02639 TRUIST BANK /ORG=METREA HOLDINGS 1 LLC SRF# 2024091300012572 TRN#240913071936 RFB# 82043318 | D87: Income | E87: 2075 | F87: =IF(Table147[[#This Row],[Bank Acct]]=LEFT(Table147[[#Headers],[BA Balance]],2),SUMIF(Table147[[#Headers],[Bank Acct]]:Table147[[#This Row],[Bank Acct]],Table147[[#This Row],[Bank Acct]],Table147[[#Headers],[Amount]]:Table147[[#This Row],[Amount]]),"") ->  | G87: =IF(Table147[[#This Row],[Bank Acct]]=LEFT(Table147[[#Headers],[WF Balance]],2),SUMIF(Table147[[#Headers],[Bank Acct]]:Table147[[#This Row],[Bank Acct]],Table147[[#This Row],[Bank Acct]],Table147[[#Headers],[Amount]]:Table147[[#This Row],[Amount]]),"") -> 7984.05 | I87: Peregrine | J87: Pmt
A88: WF | B88: 2024-09-17 | C88: WIRE TRANS SVC CHARGE - SEQUENCE: 240917023263 SRF# 2024091700543897 TRN#240917023263 RFB# | D88: Expense | E88: -15 | F88: =IF(Table147[[#This Row],[Bank Acct]]=LEFT(Table147[[#Headers],[BA Balance]],2),SUMIF(Table147[[#Headers],[Bank Acct]]:Table147[[#This Row],[Bank Acct]],Table147[[#This Row],[Bank Acct]],Table147[[#Headers],[Amount]]:Table147[[#This Row],[Amount]]),"") ->  | G88: =IF(Table147[[#This Row],[Bank Acct]]=LEFT(Table147[[#Headers],[WF Balance]],2),SUMIF(Table147[[#Headers],[Bank Acct]]:Table147[[#This Row],[Bank Acct]],Table147[[#This Row],[Bank Acct]],Table147[[#Headers],[Amount]]:Table147[[#This Row],[Amount]]),"") -> 7969.05 | I88: AE | J88: Bank Charge
A89: WF | B89: 2024-09-17 | C89: WT 2024091700543897 LLOYDS BANK PLC /ORG=COUNTERPOINT MARKET INTELLIGENCE L SRF# 2024091700543897 TRN#240917023263 RFB# | D89: Income | E89: 3197 | F89: =IF(Table147[[#This Row],[Bank Acct]]=LEFT(Table147[[#Headers],[BA Balance]],2),SUMIF(Table147[[#Headers],[Bank Acct]]:Table147[[#This Row],[Bank Acct]],Table147[[#This Row],[Bank Acct]],Table147[[#Headers],[Amount]]:Table147[[#This Row],[Amount]]),"") ->  | G89: =IF(Table147[[#This Row],[Bank Acct]]=LEFT(Table147[[#Headers],[WF Balance]],2),SUMIF(Table147[[#Headers],[Bank Acct]]:Table147[[#This Row],[Bank Acct]],Table147[[#This Row],[Bank Acct]],Table147[[#Headers],[Amount]]:Table147[[#This Row],[Amount]]),"") -> 11166.05 | I89: Counterpoint | J89: Pmt
A90: BA | B90: 2024-09-18 | C90: close account | D90: Transfer | E90: -60.82 | F90: =IF(Table147[[#This Row],[Bank Acct]]=LEFT(Table147[[#Headers],[BA Balance]],2),SUMIF(Table147[[#Headers],[Bank Acct]]:Table147[[#This Row],[Bank Acct]],Table147[[#This Row],[Bank Acct]],Table147[[#Headers],[Amount]]:Table147[[#This Row],[Amount]]),"") -> -372.43 | G90: =IF(Table147[[#This Row],[Bank Acct]]=LEFT(Table147[[#Headers],[WF Balance]],2),SUMIF(Table147[[#Headers],[Bank Acct]]:Table147[[#This Row],[Bank Acct]],Table147[[#This Row],[Bank Acct]],Table147[[#Headers],[Amount]]:Table147[[#This Row],[Amount]]),"") ->  | I90: AE | J90: Transfer
A91: BA | B91: 2024-09-18 | C91: Transfer fee | D91: Expense | E91: -1 | F91: =IF(Table147[[#This Row],[Bank Acct]]=LEFT(Table147[[#Headers],[BA Balance]],2),SUMIF(Table147[[#Headers],[Bank Acct]]:Table147[[#This Row],[Bank Acct]],Table147[[#This Row],[Bank Acct]],Table147[[#Headers],[Amount]]:Table147[[#This Row],[Amount]]),"") -> -373.43 | G91: =IF(Table147[[#This Row],[Bank Acct]]=LEFT(Table147[[#Headers],[WF Balance]],2),SUMIF(Table147[[#Headers],[Bank Acct]]:Table147[[#This Row],[Bank Acct]],Table147[[#This Row],[Bank Acct]],Table147[[#Headers],[Amount]]:Table147[[#This Row],[Amount]]),"") ->  | I91: AE | J91: Bank Charge
A92: WF | B92: 2024-09-19 | C92: RECURRING PAYMENT AUTHORIZED ON 09/18 Mailchimp 678-9990141 GA S584262425663038 CARD 2086 | D92: Expense | E92: -13.73 | F92: =IF(Table147[[#This Row],[Bank Acct]]=LEFT(Table147[[#Headers],[BA Balance]],2),SUMIF(Table147[[#Headers],[Bank Acct]]:Table147[[#This Row],[Bank Acct]],Table147[[#This Row],[Bank Acct]],Table147[[#Headers],[Amount]]:Table147[[#This Row],[Amount]]),"") ->  | G92: =IF(Table147[[#This Row],[Bank Acct]]=LEFT(Table147[[#Headers],[WF Balance]],2),SUMIF(Table147[[#Headers],[Bank Acct]]:Table147[[#This Row],[Bank Acct]],Table147[[#This Row],[Bank Acct]],Table147[[#Headers],[Amount]]:Table147[[#This Row],[Amount]]),"") -> 11152.32 | H92: =IFERROR(INDEX([1]Lookup!$B$2:$C$7,MATCH(RIGHT(TRIM(Table147[[#This Row],[Description]]),4),[1]Lookup!$B$2:$B$7,0),2),"") -> LRC | I92: AE | J92: Mailchimp | K92: 240918 - AE - Mailchimp Essentials MC21691302.pdf
A93: WF | B93: 2024-09-23 | C93: AVIAGLOBAL GROUP SENDER 240923 XXXXX8452 0000AEROSPACE EDGE, | D93: Income | E93: 60.82 | G93: =IF(Table147[[#This Row],[Bank Acct]]=LEFT(Table147[[#Headers],[WF Balance]],2),SUMIF(Table147[[#Headers],[Bank Acct]]:Table147[[#This Row],[Bank Acct]],Table147[[#This Row],[Bank Acct]],Table147[[#Headers],[Amount]]:Table147[[#This Row],[Amount]]),"") -> 11213.14 | I93: AE | J93: Transfer | K93: No receipt
A94: WF | B94: 2024-09-23 | C94: RECURRING PAYMENT AUTHORIZED ON 09/20 POWERDMARC HTTPSPOWERDMA DE S304265087180162 CARD 5623 | D94: Expense | E94: -45 | F94: =IF(Table147[[#This Row],[Bank Acct]]=LEFT(Table147[[#Headers],[BA Balance]],2),SUMIF(Table147[[#Headers],[Bank Acct]]:Table147[[#This Row],[Bank Acct]],Table147[[#This Row],[Bank Acct]],Table147[[#Headers],[Amount]]:Table147[[#This Row],[Amount]]),"") ->  | G94: =IF(Table147[[#This Row],[Bank Acct]]=LEFT(Table147[[#Headers],[WF Balance]],2),SUMIF(Table147[[#Headers],[Bank Acct]]:Table147[[#This Row],[Bank Acct]],Table147[[#This Row],[Bank Acct]],Table147[[#Headers],[Amount]]:Table147[[#This Row],[Amount]]),"") -> 11168.14 | I94: Web Hosting | J94: Web Hosting
A95: WF | B95: 2024-09-26 | C95: CHECK # 3003 | D95: Expense | E95: -4995 | G95: =IF(Table147[[#This Row],[Bank Acct]]=LEFT(Table147[[#Headers],[WF Balance]],2),SUMIF(Table147[[#Headers],[Bank Acct]]:Table147[[#This Row],[Bank Acct]],Table147[[#This Row],[Bank Acct]],Table147[[#Headers],[Amount]]:Table147[[#This Row],[Amount]]),"") -> 6173.14 | I95: AE | J95: AWIN
A96: WF | B96: 2024-10-07 | C96: RECURRING PAYMENT AUTHORIZED ON 10/06 DOWNLOADMONITOR BUCURESTI NLD S384280425897269 CARD 5623 | D96: Expense | E96: -159 | G96: =IF(Table147[[#This Row],[Bank Acct]]=LEFT(Table147[[#Headers],[WF Balance]],2),SUMIF(Table147[[#Headers],[Bank Acct]]:Table147[[#This Row],[Bank Acct]],Table147[[#This Row],[Bank Acct]],Table147[[#Headers],[Amount]]:Table147[[#This Row],[Amount]]),"") -> 6014.14 | I96: Web Hosting | J96: Web Hosting
A97: WF | B97: 2024-10-15 | C97: PURCHASE AUTHORIZED ON 10/12 SUSHI OISHII ROCKVILLE MD S584287009216105 CARD 2086 | D97: Expense | E97: -115.32 | G97: =IF(Table147[[#This Row],[Bank Acct]]=LEFT(Table147[[#Headers],[WF Balance]],2),SUMIF(Table147[[#Headers],[Bank Acct]]:Table147[[#This Row],[Bank Acct]],Table147[[#This Row],[Bank Acct]],Table147[[#Headers],[Amount]]:Table147[[#This Row],[Amount]]),"") -> 5898.82 | I97: AE Annual Meeting | J97: Meals
A98: WF | B98: 2024-10-15 | C98: PURCHASE AUTHORIZED ON 10/13 CLYDES TOWER OAKS 301-2940200 MD S584287630453423 CARD 2086 | D98: Expense | E98: -143.56 | G98: =IF(Table147[[#This Row],[Bank Acct]]=LEFT(Table147[[#Headers],[WF Balance]],2),SUMIF(Table147[[#Headers],[Bank Acct]]:Table147[[#This Row],[Bank Acct]],Table147[[#This Row],[Bank Acct]],Table147[[#Headers],[Amount]]:Table147[[#This Row],[Amount]]),"") -> 5755.26 | I98: AE Annual Meeting | J98: Meals
A99: WF | B99: 2024-10-15 | C99: PURCHASE AUTHORIZED ON 10/13 GERALD R FORD PARK GRAND RAPIDS MI S384288163674517 CARD 2086 | D99: Expense | E99: -94 | G99: =IF(Table147[[#This Row],[Bank Acct]]=LEFT(Table147[[#Headers],[WF Balance]],2),SUMIF(Table147[[#Headers],[Bank Acct]]:Table147[[#This Row],[Bank Acct]],Table147[[#This Row],[Bank Acct]],Table147[[#Headers],[Amount]]:Table147[[#This Row],[Amount]]),"") -> 5661.26 | I99: AE Annual Meeting | J99: Parking
A100: WF | B100: 2024-10-15 | C100: RECURRING PAYMENT AUTHORIZED ON 10/12 STK*Shutterstock 866-6633954 NY S384286273736000 CARD 2086 | D100: Expense | E100: -29 | G100: =IF(Table147[[#This Row],[Bank Acct]]=LEFT(Table147[[#Headers],[WF Balance]],2),SUMIF(Table147[[#Headers],[Bank Acct]]:Table147[[#This Row],[Bank Acct]],Table147[[#This Row],[Bank Acct]],Table147[[#Headers],[Amount]]:Table147[[#This Row],[Amount]]),"") -> 5632.26 | I100: Web Hosting | J100: Images | K100: 241012 - Shutterstock CS-0D34F-073A.pdf
A101: WF | B101: 2024-10-21 | C101: RECURRING PAYMENT AUTHORIZED ON 10/18 Mailchimp 678-9990141 GA S384292371736318 CARD 2086 | D101: Expense | E101: -13.73 | G101: =IF(Table147[[#This Row],[Bank Acct]]=LEFT(Table147[[#Headers],[WF Balance]],2),SUMIF(Table147[[#Headers],[Bank Acct]]:Table147[[#This Row],[Bank Acct]],Table147[[#This Row],[Bank Acct]],Table147[[#Headers],[Amount]]:Table147[[#This Row],[Amount]]),"") -> 5618.53 | H101: =IFERROR(INDEX([1]Lookup!$B$2:$C$7,MATCH(RIGHT(TRIM(Table147[[#This Row],[Description]]),4),[1]Lookup!$B$2:$B$7,0),2),"") -> LRC | I101: AE | J101: Mailchimp | K101: 241018 - AE - Mailchimp Essentials MC21886743.pdf
A102: WF | B102: 2024-10-21 | C102: RECURRING PAYMENT AUTHORIZED ON 10/20 POWERDMARC HTTPSPOWERDMA DE S304295078878329 CARD 5623 | D102: Expense | E102: -45 | G102: =IF(Table147[[#This Row],[Bank Acct]]=LEFT(Table147[[#Headers],[WF Balance]],2),SUMIF(Table147[[#Headers],[Bank Acct]]:Table147[[#This Row],[Bank Acct]],Table147[[#This Row],[Bank Acct]],Table147[[#Headers],[Amount]]:Table147[[#This Row],[Amount]]),"") -> 5573.53 | I102: Web Hosting | J102: Web Hosting
A103: WF | B103: 2024-10-24 | C103: WT 2024102400551226 LLOYDS BANK PLC /ORG=COUNTERPOINT MARKET INTELLIGENCE L SRF# 2024102400551226 TRN#241024019692 RFB# | D103: Income | E103: 3660.99 | G103: =IF(Table147[[#This Row],[Bank Acct]]=LEFT(Table147[[#Headers],[WF Balance]],2),SUMIF(Table147[[#Headers],[Bank Acct]]:Table147[[#This Row],[Bank Acct]],Table147[[#This Row],[Bank Acct]],Table147[[#Headers],[Amount]]:Table147[[#This Row],[Amount]]),"") -> 9234.52 | I103: Counterpoint | J103: Pmt
A104: WF | B104: 2024-10-28 | C104: ONLINE TRANSFER TO LAKE MICHIGAN CREDIT UNION CHK XXXXXX1558 L. CARLSON REF #F20Q2MQMX9 ANNUAL MEETING FLIGHT HOTEL PARKING | D104: Expense | E104: -1195.28 | G104: =IF(Table147[[#This Row],[Bank Acct]]=LEFT(Table147[[#Headers],[WF Balance]],2),SUMIF(Table147[[#Headers],[Bank Acct]]:Table147[[#This Row],[Bank Acct]],Table147[[#This Row],[Bank Acct]],Table147[[#Headers],[Amount]]:Table147[[#This Row],[Amount]]),"") -> 8039.24 | I104: AE Annual Meeting
A105: WF | B105: 2024-11-06 | C105: ONLINE TRANSFER TO COLLIVER F REF #IB0Q5TY4GB CHECKING EXPENSES FC WASHINGTON NOV 2024 | D105: Expense | E105: -2129.95 | G105: =IF(Table147[[#This Row],[Bank Acct]]=LEFT(Table147[[#Headers],[WF Balance]],2),SUMIF(Table147[[#Headers],[Bank Acct]]:Table147[[#This Row],[Bank Acct]],Table147[[#This Row],[Bank Acct]],Table147[[#Headers],[Amount]]:Table147[[#This Row],[Amount]]),"") -> 5909.29 | I105: AE Annual Meeting
A106: WF | B106: 2024-11-06 | C106: RECURRING PAYMENT AUTHORIZED ON 11/05 SC* STACKSOCIAL STACKCOMMERCE CA S384310732549156 CARD 2086 | D106: Expense | E106: -119.8 | G106: =IF(Table147[[#This Row],[Bank Acct]]=LEFT(Table147[[#Headers],[WF Balance]],2),SUMIF(Table147[[#Headers],[Bank Acct]]:Table147[[#This Row],[Bank Acct]],Table147[[#This Row],[Bank Acct]],Table147[[#Headers],[Amount]]:Table147[[#This Row],[Amount]]),"") -> 5789.49 | I106: AE Software
A107: WF | B107: 2024-11-13 | C107: RECURRING PAYMENT AUTHORIZED ON 11/11 STK*Shutterstock 866-6633954 NY S384317273610974 CARD 2086 | D107: Expense | E107: -29 | G107: =IF(Table147[[#This Row],[Bank Acct]]=LEFT(Table147[[#Headers],[WF Balance]],2),SUMIF(Table147[[#Headers],[Bank Acct]]:Table147[[#This Row],[Bank Acct]],Table147[[#This Row],[Bank Acct]],Table147[[#Headers],[Amount]]:Table147[[#This Row],[Amount]]),"") -> 5760.49 | I107: Web Hosting | J107: Images | K107: 241112 - Shutterstock CS-087A3-DDCD.pdf
A108: WF | B108: 2024-11-18 | C108: PURCHASE AUTHORIZED ON 11/15 NBAA WASHINGTON DC S304320607062480 CARD 2086 | D108: Expense | E108: -199 | G108: =IF(Table147[[#This Row],[Bank Acct]]=LEFT(Table147[[#Headers],[WF Balance]],2),SUMIF(Table147[[#Headers],[Bank Acct]]:Table147[[#This Row],[Bank Acct]],Table147[[#This Row],[Bank Acct]],Table147[[#Headers],[Amount]]:Table147[[#This Row],[Amount]]),"") -> 5561.49 | I108: AE | J108: Membership
A109: WF | B109: 2024-11-19 | C109: RECURRING PAYMENT AUTHORIZED ON 11/17 Mailchimp 678-9990141 GA S584323252253377 CARD 2086 | D109: Expense | E109: -13.73 | G109: =IF(Table147[[#This Row],[Bank Acct]]=LEFT(Table147[[#Headers],[WF Balance]],2),SUMIF(Table147[[#Headers],[Bank Acct]]:Table147[[#This Row],[Bank Acct]],Table147[[#This Row],[Bank Acct]],Table147[[#Headers],[Amount]]:Table147[[#This Row],[Amount]]),"") -> 5547.76 | H109: =IFERROR(INDEX([1]Lookup!$B$2:$C$7,MATCH(RIGHT(TRIM(Table147[[#This Row],[Description]]),4),[1]Lookup!$B$2:$B$7,0),2),"") -> LRC | I109: AE | J109: Mailchimp | K109: 241118 - AE - Mailchimp Essentials MC22090019.pdf
A110: WF | B110: 2024-11-20 | C110: RECURRING PAYMENT AUTHORIZED ON 11/20 RSS* REALLYSIMPLES GRONINGEN NLD S584325304646688 CARD 5623 | D110: Expense | E110: -209 | G110: =IF(Table147[[#This Row],[Bank Acct]]=LEFT(Table147[[#Headers],[WF Balance]],2),SUMIF(Table147[[#Headers],[Bank Acct]]:Table147[[#This Row],[Bank Acct]],Table147[[#This Row],[Bank Acct]],Table147[[#Headers],[Amount]]:Table147[[#This Row],[Amount]]),"") -> 5338.76 | I110: Web Hosting | J110: Web Hosting
A111: WF | B111: 2024-11-21 | C111: RECURRING PAYMENT AUTHORIZED ON 11/20 POWERDMARC POWERDMARC.CO DE S584326081469958 CARD 5623 | D111: Expense | E111: -45 | G111: =IF(Table147[[#This Row],[Bank Acct]]=LEFT(Table147[[#Headers],[WF Balance]],2),SUMIF(Table147[[#Headers],[Bank Acct]]:Table147[[#This Row],[Bank Acct]],Table147[[#This Row],[Bank Acct]],Table147[[#Headers],[Amount]]:Table147[[#This Row],[Amount]]),"") -> 5293.76 | I111: Web Hosting | J111: Web Hosting
A112: WF | B112: 2024-11-25 | C112: PURCHASE AUTHORIZED ON 11/24 Groupon, Inc. 312-2886424 IL S584329654432510 CARD 2086 | D112: Expense | E112: -31.92 | G112: =IF(Table147[[#This Row],[Bank Acct]]=LEFT(Table147[[#Headers],[WF Balance]],2),SUMIF(Table147[[#Headers],[Bank Acct]]:Table147[[#This Row],[Bank Acct]],Table147[[#This Row],[Bank Acct]],Table147[[#Headers],[Amount]]:Table147[[#This Row],[Amount]]),"") -> 5261.84 | I112: AE | J112: FWC Office 2024 | K112: 241105 - StackSocial MS Products.pdf
A113: WF | B113: 2024-11-26 | C113: WT 2024112600603289 LLOYDS BANK PLC /ORG=COUNTERPOINT MARKET INTELLIGENCE L SRF# 2024112600603289 TRN#241126070058 RFB# | D113: Income | E113: 1551.19 | G113: =IF(Table147[[#This Row],[Bank Acct]]=LEFT(Table147[[#Headers],[WF Balance]],2),SUMIF(Table147[[#Headers],[Bank Acct]]:Table147[[#This Row],[Bank Acct]],Table147[[#This Row],[Bank Acct]],Table147[[#Headers],[Amount]]:Table147[[#This Row],[Amount]]),"") -> 6813.03 | I113: Counterpoint | J113: Pmt
A114: WF | B114: 2024-11-27 | C114: METREA PEREGRINE PAYABLES 112624 MASD-000019 Aerospace Edge, LLC | D114: Income | E114: 4075 | G114: =IF(Table147[[#This Row],[Bank Acct]]=LEFT(Table147[[#Headers],[WF Balance]],2),SUMIF(Table147[[#Headers],[Bank Acct]]:Table147[[#This Row],[Bank Acct]],Table147[[#This Row],[Bank Acct]],Table147[[#Headers],[Amount]]:Table147[[#This Row],[Amount]]),"") -> 10888.03 | I114: Peregrine | J114: Pmt
A115: WF | B115: 2024-12-12 | C115: METREA PEREGRINE PAYABLES 121124 MASD-000019 Aerospace Edge, LLC | D115: Income | E115: 2000 | G115: =IF(Table147[[#This Row],[Bank Acct]]=LEFT(Table147[[#Headers],[WF Balance]],2),SUMIF(Table147[[#Headers],[Bank Acct]]:Table147[[#This Row],[Bank Acct]],Table147[[#This Row],[Bank Acct]],Table147[[#Headers],[Amount]]:Table147[[#This Row],[Amount]]),"") -> 12888.03 | I115: Peregrine | J115: Pmt
A116: WF | B116: 2024-12-13 | C116: RECURRING PAYMENT AUTHORIZED ON 12/11 STK*Shutterstock 866-6633954 NY S584347273765926 CARD 2086 | D116: Expense | E116: -29 | G116: =IF(Table147[[#This Row],[Bank Acct]]=LEFT(Table147[[#Headers],[WF Balance]],2),SUMIF(Table147[[#Headers],[Bank Acct]]:Table147[[#This Row],[Bank Acct]],Table147[[#This Row],[Bank Acct]],Table147[[#Headers],[Amount]]:Table147[[#This Row],[Amount]]),"") -> 12859.03 | I116: Web Hosting | J116: Images | K116: 241212 - Shutterstock CS-0FFC9-744F.pdf
A117: WF | B117: 2024-12-19 | C117: RECURRING PAYMENT AUTHORIZED ON 12/17 Mailchimp 678-9990141 GA S584353254329156 CARD 2086 | D117: Expense | E117: -13.73 | G117: =IF(Table147[[#This Row],[Bank Acct]]=LEFT(Table147[[#Headers],[WF Balance]],2),SUMIF(Table147[[#Headers],[Bank Acct]]:Table147[[#This Row],[Bank Acct]],Table147[[#This Row],[Bank Acct]],Table147[[#Headers],[Amount]]:Table147[[#This Row],[Amount]]),"") -> 12845.3 | H117: =IFERROR(INDEX([1]Lookup!$B$2:$C$7,MATCH(RIGHT(TRIM(Table147[[#This Row],[Description]]),4),[1]Lookup!$B$2:$B$7,0),2),"") -> LRC | I117: AE | J117: Mailchimp | K117: 241218 - AE - Mailchimp Essentials MC22304635.pdf
A118: WF | B118: 2024-12-20 | C118: ONLINE TRANSFER TO COLLIVER F REF #IB0QNR8HHG EVERYDAY CHECKING EOY DISTRIBUTION | D118: Distribution | E118: -4100 | G118: =IF(Table147[[#This Row],[Bank Acct]]=LEFT(Table147[[#Headers],[WF Balance]],2),SUMIF(Table147[[#Headers],[Bank Acct]]:Table147[[#This Row],[Bank Acct]],Table147[[#This Row],[Bank Acct]],Table147[[#Headers],[Amount]]:Table147[[#This Row],[Amount]]),"") -> 8745.3 | I118: AE | J118: Distibution
A119: WF | B119: 2024-12-23 | C119: RECURRING PAYMENT AUTHORIZED ON 12/20 POWERDMARC POWERDMARC.CO DE S304356083997338 CARD 5623 | D119: Expense | E119: -45 | G119: =IF(Table147[[#This Row],[Bank Acct]]=LEFT(Table147[[#Headers],[WF Balance]],2),SUMIF(Table147[[#Headers],[Bank Acct]]:Table147[[#This Row],[Bank Acct]],Table147[[#This Row],[Bank Acct]],Table147[[#Headers],[Amount]]:Table147[[#This Row],[Amount]]),"") -> 8700.3 | I119: Web Hosting | J119: Web Hosting
A120: WF | B120: 2024-12-24 | C120: PURCHASE AUTHORIZED ON 12/23 SP NERDUSED LONDON GBR S464358472602682 CARD 2086 | D120: Expense | E120: -39.98 | G120: =IF(Table147[[#This Row],[Bank Acct]]=LEFT(Table147[[#Headers],[WF Balance]],2),SUMIF(Table147[[#Headers],[Bank Acct]]:Table147[[#This Row],[Bank Acct]],Table147[[#This Row],[Bank Acct]],Table147[[#Headers],[Amount]]:Table147[[#This Row],[Amount]]),"") -> 8660.32 | I120: AE | J120: Software
A121: WF | B121: 2024-12-26 | C121: ONLINE TRANSFER FROM COLLIVER F REF #IB0QQMWFXX EVERYDAY CHECKING REIMBURSEMENT OF 2024 EXPENSE PAYMENTS | D121: Expense | E121: 5428.39 | G121: =IF(Table147[[#This Row],[Bank Acct]]=LEFT(Table147[[#Headers],[WF Balance]],2),SUMIF(Table147[[#Headers],[Bank Acct]]:Table147[[#This Row],[Bank Acct]],Table147[[#This Row],[Bank Acct]],Table147[[#Headers],[Amount]]:Table147[[#This Row],[Amount]]),"") -> 14088.71
A122: WF | B122: 2024-12-26 | C122: ONLINE TRANSFER TO LAKE MICHIGAN CREDIT UNION CHK XXXXXX1558 L. CARLSON REF #F20QQKZH3V ADS B GLOABL DISTRIBUTION | D122: Distribution | E122: -4100 | G122: =IF(Table147[[#This Row],[Bank Acct]]=LEFT(Table147[[#Headers],[WF Balance]],2),SUMIF(Table147[[#Headers],[Bank Acct]]:Table147[[#This Row],[Bank Acct]],Table147[[#This Row],[Bank Acct]],Table147[[#Headers],[Amount]]:Table147[[#This Row],[Amount]]),"") -> 9988.71 | I122: AE | J122: Distibution
A123: WF | B123: 2024-12-26 | C123: WIRE TRANS SVC CHARGE - SEQUENCE: 241226136911 SRF# OW00005243006945 TRN#241226136911 RFB# OW00005243006945 | D123: Expense | E123: -25 | G123: =IF(Table147[[#This Row],[Bank Acct]]=LEFT(Table147[[#Headers],[WF Balance]],2),SUMIF(Table147[[#Headers],[Bank Acct]]:Table147[[#This Row],[Bank Acct]],Table147[[#This Row],[Bank Acct]],Table147[[#Headers],[Amount]]:Table147[[#This Row],[Amount]]),"") -> 9963.71 | I123: AE | J123: Bank Charge
A124: WF | B124: 2024-12-26 | C124: WT 241226-136911 LCL (LE CREDIT LYON /BNF=AeroNextGen Solutions SAS SRF# OW00005243006945 TRN#241226136911 RFB# OW00005243006945 | D124: Expense | E124: -9210.92 | G124: =IF(Table147[[#This Row],[Bank Acct]]=LEFT(Table147[[#Headers],[WF Balance]],2),SUMIF(Table147[[#Headers],[Bank Acct]]:Table147[[#This Row],[Bank Acct]],Table147[[#This Row],[Bank Acct]],Table147[[#Headers],[Amount]]:Table147[[#This Row],[Amount]]),"") -> 752.79
A125: WF | B125: 2024-12-30 | C125: WIRE TRANS SVC CHARGE - SEQUENCE: 241230128811 SRF# OW00005253772191 TRN#241230128811 RFB# OW00005253772191 | D125: Expense | E125: -25 | G125: =IF(Table147[[#This Row],[Bank Acct]]=LEFT(Table147[[#Headers],[WF Balance]],2),SUMIF(Table147[[#Headers],[Bank Acct]]:Table147[[#This Row],[Bank Acct]],Table147[[#This Row],[Bank Acct]],Table147[[#Headers],[Amount]]:Table147[[#This Row],[Amount]]),"") -> 727.79 | I125: AE | J125: Bank Charge
A126: WF | B126: 2024-12-30 | C126: WT 241230-128811 LCL (LE CREDIT LYON /BNF=AeroNextGen Solutions SAS SRF# OW00005253772191 TRN#241230128811 RFB# OW00005253772191 | D126: Expense | E126: -838.19 | G126: =IF(Table147[[#This Row],[Bank Acct]]=LEFT(Table147[[#Headers],[WF Balance]],2),SUMIF(Table147[[#Headers],[Bank Acct]]:Table147[[#This Row],[Bank Acct]],Table147[[#This Row],[Bank Acct]],Table147[[#Headers],[Amount]]:Table147[[#This Row],[Amount]]),"") -> -110.4
